{"text_format":"1","workbook":"xlsx","n_sheets":4,"sheets":["ورقة1","Sheet1","Sheet2","Salim"],"not_rendered":{"charts":0,"images":1,"macros":1,"external_links":0,"defined_names":0,"comments":1,"pivot_tables":0},"unopened":[],"bounds":{"document_bytes":16777216,"sheet_cells":100000,"rows_first":2000,"rows_last":500,"rows_between":2000,"halvings":0,"cell_chars":16384,"cell_head_chars":4096},"cells_cut":0,"cells_raw":0,"read":"whole","date_system":"1900"}

{"sheet":"ورقة1","index":0,"n_rows":0,"n_cols":0,"rows_kept":0,"cut":false,"hidden":true,"merged":[]}

{"sheet":"Sheet1","index":1,"n_rows":775,"n_cols":5,"rows_kept":775,"cut":false,"hidden":false,"merged":[]}
["اسم الموظف ","عدد الايام ","المرتب ","السلف ","الاجمالي "]
["ابانوب بشاره نصر بشاره",{"$f":"SUM(Sheet2!C2:AF2)","v":3},{"$f":"Sheet1!$B2*65","v":195},30,{"$f":"$C2-$D2","v":165}]
["ابراهيم احمد محمد عيسي",{"$f":"SUM(Sheet2!C3:AF3)","v":3},{"$f":"Sheet1!$B3*65","v":195},50,{"$f":"$C3-$D3","v":145}]
["ابراهيم عادل ابراهيم جباره",{"$f":"SUM(Sheet2!C4:AF4)","v":17},{"$f":"Sheet1!$B4*65","v":1105},null,1105]
["ابراهيم عبدالحميد اسماعيل",10,10,null,65]
["ابراهيم عبدالله محمد علي",{"$f":"SUM(Sheet2!C6:AF6)","v":6},{"$f":"Sheet1!$B6*65","v":390},null,390]
["ابراهيم عقيلي ابراهيم حماد",{"$f":"SUM(Sheet2!C7:AF7)","v":16},{"$f":"Sheet1!$B7*65","v":1040},null,1040]
["ابراهيم كامل علي عويان",{"$f":"SUM(Sheet2!C8:AF8)","v":25},{"$f":"Sheet1!$B8*65","v":1625},300,1325]
["ابراهيم محمد ابراهيم جاد",{"$f":"SUM(Sheet2!C9:AF9)","v":4},{"$f":"Sheet1!$B9*65","v":260},null,260]
["ابراهيم محمد شعيب علي",{"$f":"SUM(Sheet2!C10:AF10)","v":2},{"$f":"Sheet1!$B10*65","v":130},null,130]
["ابراهيم يوسف درويش ابراهيم",{"$f":"SUM(Sheet2!C11:AF11)","v":7},{"$f":"Sheet1!$B11*65","v":455},null,455]
["ابوالسعود صابر ابوالسعود",{"$f":"SUM(Sheet2!C12:AF12)","v":1},{"$f":"Sheet1!$B12*65","v":65},null,65]
["ابوالعلا محمد ابوالعلا",{"$f":"SUM(Sheet2!C13:AF13)","v":29},{"$f":"Sheet1!$B13*65","v":1885},null,1885]
["ابوبكر عبدالعزيز عثمان",{"$f":"SUM(Sheet2!C14:AF14)","v":53},{"$f":"Sheet1!$B14*65","v":3445},null,3445]
["احمد ابو نبوت احمد",{"$f":"SUM(Sheet2!C15:AF15)","v":10},{"$f":"Sheet1!$B15*65","v":650},null,650]
["احمد اشرف محمد حسنين",{"$f":"SUM(Sheet2!C16:AF16)","v":24},{"$f":"Sheet1!$B16*65","v":1560},null,1560]
["احمد انور محمد الهلوبي",{"$f":"SUM(Sheet2!C17:AF17)","v":8},{"$f":"Sheet1!$B17*65","v":520},null,520]
["احمد ايمن نبوي",{"$f":"SUM(Sheet2!C18:AF18)","v":1},{"$f":"Sheet1!$B18*65","v":65},null,65]
["احمد جلال احمد محارم",{"$f":"SUM(Sheet2!C19:AF19)","v":47},{"$f":"Sheet1!$B19*65","v":3055},null,3055]
["احمد جمال احمد هلال",{"$f":"SUM(Sheet2!C20:AF20)","v":6},{"$f":"Sheet1!$B20*65","v":390},null,390]
["احمد جمال عيسي حمزه",{"$f":"SUM(Sheet2!C21:AF21)","v":17},{"$f":"Sheet1!$B21*65","v":1105},null,1105]
["احمد حسن حسن حبيب",{"$f":"SUM(Sheet2!C22:AF22)","v":9},{"$f":"Sheet1!$B22*65","v":585},null,585]
["احمد حسن سعد محمد مبروك",{"$f":"SUM(Sheet2!C23:AF23)","v":2},{"$f":"Sheet1!$B23*65","v":130},null,130]
["احمد حسن طه محمد",{"$f":"SUM(Sheet2!C24:AF24)","v":2},{"$f":"Sheet1!$B24*65","v":130},null,130]
["احمد حسنين ابراهيم",{"$f":"SUM(Sheet2!C25:AF25)","v":19},{"$f":"Sheet1!$B25*65","v":1235},null,1235]
["احمد حسين مبروك حسين",{"$f":"SUM(Sheet2!C26:AF26)","v":6},{"$f":"Sheet1!$B26*65","v":390},null,390]
["احمد خليل عثمان البربري",{"$f":"SUM(Sheet2!C27:AF27)","v":1},{"$f":"Sheet1!$B27*65","v":65},null,65]
["احمد خميس محمود عبدالنبي",{"$f":"SUM(Sheet2!C28:AF28)","v":44},{"$f":"Sheet1!$B28*65","v":2860},null,2860]
["احمد رجب مرشدي محمد علي",{"$f":"SUM(Sheet2!C29:AF29)","v":17},{"$f":"Sheet1!$B29*65","v":1105},null,1105]
["احمد رشاد عيسي محمد",{"$f":"SUM(Sheet2!C30:AF30)","v":6},{"$f":"Sheet1!$B30*65","v":390},null,390]
["احمد رضا حلمي عبدالوهاب",{"$f":"SUM(Sheet2!C31:AF31)","v":6},{"$f":"Sheet1!$B31*65","v":390},null,390]
["احمد زغلول احمد القماش",{"$f":"SUM(Sheet2!C32:AF32)","v":8},{"$f":"Sheet1!$B32*65","v":520},null,520]
["احمد سامي السيد احمد",{"$f":"SUM(Sheet2!C33:AF33)","v":4},{"$f":"Sheet1!$B33*65","v":260},null,260]
["احمد سلامه رمضان",{"$f":"SUM(Sheet2!C34:AF34)","v":6},{"$f":"Sheet1!$B34*65","v":390},null,390]
["احمد صلاح محمود علي ",{"$f":"SUM(Sheet2!C35:AF35)","v":22},{"$f":"Sheet1!$B35*65","v":1430},null,1430]
["احمد عادل فتحي محمد",{"$f":"SUM(Sheet2!C36:AF36)","v":1},{"$f":"Sheet1!$B36*65","v":65},null,65]
["احمد عبدالباسط محمد الطباخ",{"$f":"SUM(Sheet2!C37:AF37)","v":1},{"$f":"Sheet1!$B37*65","v":65},null,65]
["احمد عبدالتواب احمد سالمان",{"$f":"SUM(Sheet2!C38:AF38)","v":5},{"$f":"Sheet1!$B38*65","v":325},null,325]
["احمد عبدالحميد حسن",{"$f":"SUM(Sheet2!C39:AF39)","v":10},{"$f":"Sheet1!$B39*65","v":650},null,650]
["احمد عبدالحميد عبدالمنصف",{"$f":"SUM(Sheet2!C40:AF40)","v":1},{"$f":"Sheet1!$B40*65","v":65},null,65]
["احمد عبدالرحمن حسن",{"$f":"SUM(Sheet2!C41:AF41)","v":0},{"$f":"Sheet1!$B41*65","v":0},null,0]
["احمد عبدالعزيز عبدالمقصود",{"$f":"SUM(Sheet2!C42:AF42)","v":45},{"$f":"Sheet1!$B42*65","v":2925},null,2925]
["احمد عبدالله كامل عبدالعزيز",{"$f":"SUM(Sheet2!C43:AF43)","v":1},{"$f":"Sheet1!$B43*65","v":65},null,65]
["احمد عبدالمولي محمد عبدالغفار",{"$f":"SUM(Sheet2!C44:AF44)","v":1},{"$f":"Sheet1!$B44*65","v":65},null,65]
["احمد فتحي ابراهيم سلامه",{"$f":"SUM(Sheet2!C45:AF45)","v":17},{"$f":"Sheet1!$B45*65","v":1105},null,1105]
["احمد فهمي علاء عبدالسلام",{"$f":"SUM(Sheet2!C46:AF46)","v":1},{"$f":"Sheet1!$B46*65","v":65},null,65]
["احمد فهمي علي سلام",{"$f":"SUM(Sheet2!C47:AF47)","v":2},{"$f":"Sheet1!$B47*65","v":130},null,130]
["احمد مجدي احمد الشرقاوي",{"$f":"SUM(Sheet2!C48:AF48)","v":2},{"$f":"Sheet1!$B48*65","v":130},null,130]
["احمد محسن سعد محمد مبروك",{"$f":"SUM(Sheet2!C49:AF49)","v":18},{"$f":"Sheet1!$B49*65","v":1170},null,1170]
["احمد محمد احمد حسن",{"$f":"SUM(Sheet2!C50:AF50)","v":21},{"$f":"Sheet1!$B50*65","v":1365},null,1365]
["احمد محمد جاد الضي",{"$f":"SUM(Sheet2!C51:AF51)","v":1},{"$f":"Sheet1!$B51*65","v":65},null,65]
["احمد محمد جمعه علي موسي",{"$f":"SUM(Sheet2!C52:AF52)","v":7},{"$f":"Sheet1!$B52*65","v":455},null,455]
["احمد محمد حمد عبدالسيد",{"$f":"SUM(Sheet2!C53:AF53)","v":27},{"$f":"Sheet1!$B53*65","v":1755},null,1755]
["احمد محمد عبدالعزيز زنون",{"$f":"SUM(Sheet2!C54:AF54)","v":2},{"$f":"Sheet1!$B54*65","v":130},null,130]
["احمد محمد عبدالفتاح اسماعيل",{"$f":"SUM(Sheet2!C55:AF55)","v":8},{"$f":"Sheet1!$B55*65","v":520},null,520]
["احمد محمد عبدالله سيد احمد",{"$f":"SUM(Sheet2!C56:AF56)","v":13},{"$f":"Sheet1!$B56*65","v":845},null,845]
["احمد محمد عبدالله محمد",{"$f":"SUM(Sheet2!C57:AF57)","v":2},{"$f":"Sheet1!$B57*65","v":130},null,130]
["احمد محمد عبدالمقصود",{"$f":"SUM(Sheet2!C58:AF58)","v":2},{"$f":"Sheet1!$B58*65","v":130},null,130]
["احمد محمد عبدالمنعم عثمان  الجندي",{"$f":"SUM(Sheet2!C59:AF59)","v":3},{"$f":"Sheet1!$B59*65","v":195},null,195]
["احمد محمد علي محمد علي",{"$f":"SUM(Sheet2!C60:AF60)","v":3},{"$f":"Sheet1!$B60*65","v":195},null,195]
["احمد محمد محمد زيدان",{"$f":"SUM(Sheet2!C61:AF61)","v":9},{"$f":"Sheet1!$B61*65","v":585},null,585]
["احمد محمد محمد عبدالسيد",{"$f":"SUM(Sheet2!C62:AF62)","v":2},{"$f":"Sheet1!$B62*65","v":130},null,130]
["احمد محمود احمد حبيب",{"$f":"SUM(Sheet2!C63:AF63)","v":6},{"$f":"Sheet1!$B63*65","v":390},null,390]
["احمد محمود عبدالغفار",{"$f":"SUM(Sheet2!C64:AF64)","v":7},{"$f":"Sheet1!$B64*65","v":455},null,455]
["احمد محمود محمد حبيش",{"$f":"SUM(Sheet2!C65:AF65)","v":2},{"$f":"Sheet1!$B65*65","v":130},null,130]
["احمد محمود محمد حسين",{"$f":"SUM(Sheet2!C66:AF66)","v":16},{"$f":"Sheet1!$B66*65","v":1040},null,1040]
["احمد محمود مصطفي علي",{"$f":"SUM(Sheet2!C67:AF67)","v":29},{"$f":"Sheet1!$B67*65","v":1885},null,{"$f":"$C67-$D67","v":1885}]
["احمد مرزوق عبدالحفيظ امين",{"$f":"SUM(Sheet2!C68:AF68)","v":1},{"$f":"Sheet1!$B68*65","v":65},null,65]
["احمد منير محتمد سعد",{"$f":"SUM(Sheet2!C69:AF69)","v":19},{"$f":"Sheet1!$B69*65","v":1235},null,1235]
["ادم رمضان عوض محمد",{"$f":"SUM(Sheet2!C70:AF70)","v":10},{"$f":"Sheet1!$B70*65","v":650},null,650]
["ادهم رمضان عوض محمد",{"$f":"SUM(Sheet2!C71:AF71)","v":17},{"$f":"Sheet1!$B71*65","v":1105},null,1105]
["اسامه جمعه عبدالعظيم",{"$f":"SUM(Sheet2!C72:AF72)","v":5},{"$f":"Sheet1!$B72*65","v":325},null,325]
["اسامه عبدالله محمود عبدالله",{"$f":"SUM(Sheet2!C73:AF73)","v":19},{"$f":"Sheet1!$B73*65","v":1235},null,1235]
["اسامه محمد عبدالمنعم الغريب",{"$f":"SUM(Sheet2!C74:AF74)","v":0},{"$f":"Sheet1!$B74*65","v":0},null,0]
["اسلام احمد رجب عيد",{"$f":"SUM(Sheet2!C75:AF75)","v":0},{"$f":"Sheet1!$B75*65","v":0},null,0]
["اسلام طارق عبدالفتاح",{"$f":"SUM(Sheet2!C76:AF76)","v":2},{"$f":"Sheet1!$B76*65","v":130},null,130]
["اسلام محمد عبدالرحيم",{"$f":"SUM(Sheet2!C77:AF77)","v":44},{"$f":"Sheet1!$B77*65","v":2860},null,2860]
["اسلام محمود ابراهيم حسن",{"$f":"SUM(Sheet2!C78:AF78)","v":33},{"$f":"Sheet1!$B78*65","v":2145},null,2145]
["اسلام مسعد عبدالعزيزسليمان",{"$f":"SUM(Sheet2!C79:AF79)","v":5},{"$f":"Sheet1!$B79*65","v":325},null,325]
["اسلام مصطفي علي ابوالحديد",{"$f":"SUM(Sheet2!C80:AF80)","v":4},{"$f":"Sheet1!$B80*65","v":260},null,260]
["اسلام مصطفي محمد عبدالعزيز",{"$f":"SUM(Sheet2!C81:AF81)","v":36},{"$f":"Sheet1!$B81*65","v":2340},null,2340]
["اسماعيل احمد محمود احمد",{"$f":"SUM(Sheet2!C82:AF82)","v":26},{"$f":"Sheet1!$B82*65","v":1690},null,1690]
["اسماعيل محمد اسماعيل الطنطي",{"$f":"SUM(Sheet2!C83:AF83)","v":36},{"$f":"Sheet1!$B83*65","v":2340},null,2340]
["اسماعيل مشحوت محمد عيد",{"$f":"SUM(Sheet2!C84:AF84)","v":26},{"$f":"Sheet1!$B84*65","v":1690},null,1690]
["اشرف صادق عطيه",{"$f":"SUM(Sheet2!C85:AF85)","v":3},{"$f":"Sheet1!$B85*65","v":195},null,195]
["اكرامي محمد مجاور حموده",{"$f":"SUM(Sheet2!C86:AF86)","v":15},{"$f":"Sheet1!$B86*65","v":975},null,975]
["اكرامي محمد محمد موسي",{"$f":"SUM(Sheet2!C87:AF87)","v":6},{"$f":"Sheet1!$B87*65","v":390},null,390]
["السيد عبدالله عمر مصباح",{"$f":"SUM(Sheet2!C88:AF88)","v":5},{"$f":"Sheet1!$B88*65","v":325},null,325]
["السيد مبارك السيد علي الكسبي",{"$f":"SUM(Sheet2!C89:AF89)","v":7},{"$f":"Sheet1!$B89*65","v":455},null,455]
["السيد محمود احمد عبداللطيف",{"$f":"SUM(Sheet2!C90:AF90)","v":14},{"$f":"Sheet1!$B90*65","v":910},null,910]
["السيد مسعود السيد محمد",{"$f":"SUM(Sheet2!C91:AF91)","v":11},{"$f":"Sheet1!$B91*65","v":715},null,715]
["الشحات حميده مبروك اسماعيل",{"$f":"SUM(Sheet2!C92:AF92)","v":3},{"$f":"Sheet1!$B92*65","v":195},null,195]
["انس سعد مصطفي سلامه",{"$f":"SUM(Sheet2!C93:AF93)","v":7},{"$f":"Sheet1!$B93*65","v":455},null,455]
["انور عبدالسلام احمد العجوز",{"$f":"SUM(Sheet2!C94:AF94)","v":26},{"$f":"Sheet1!$B94*65","v":1690},null,1690]
["ايمن السيد محمد ابوزيد",{"$f":"SUM(Sheet2!C95:AF95)","v":2},{"$f":"Sheet1!$B95*65","v":130},null,130]
["ايمن جمال السيد السيد مشحوت",{"$f":"SUM(Sheet2!C96:AF96)","v":27},{"$f":"Sheet1!$B96*65","v":1755},null,1755]
["ايمن عبدالعزيز محمد زايد",{"$f":"SUM(Sheet2!C97:AF97)","v":1},{"$f":"Sheet1!$B97*65","v":65},null,65]
["ايمن محمود هاشم محمود",{"$f":"SUM(Sheet2!C98:AF98)","v":3},{"$f":"Sheet1!$B98*65","v":195},null,195]
["ايهاب حسن عبدالنطلب غنيم",{"$f":"SUM(Sheet2!C99:AF99)","v":5},{"$f":"Sheet1!$B99*65","v":325},null,325]
["ايهاب فتحي مصطفي",{"$f":"SUM(Sheet2!C100:AF100)","v":0},{"$f":"Sheet1!$B100*65","v":0},null,0]
["باسم فاروق محمود همام",{"$f":"SUM(Sheet2!C101:AF101)","v":29},{"$f":"Sheet1!$B101*65","v":1885},null,1885]
["باسم نصر ابراهيم اسماعيل",{"$f":"SUM(Sheet2!C102:AF102)","v":13},{"$f":"Sheet1!$B102*65","v":845},null,845]
["بدري عبدالله بدري عبدالله",{"$f":"SUM(Sheet2!C103:AF103)","v":6},{"$f":"Sheet1!$B103*65","v":390},null,390]
["بلال جمعه عمر امين",{"$f":"SUM(Sheet2!C104:AF104)","v":19},{"$f":"Sheet1!$B104*65","v":1235},null,1235]
["بلال رزق عبدالعزيز",{"$f":"SUM(Sheet2!C105:AF105)","v":19},{"$f":"Sheet1!$B105*65","v":1235},null,1235]
["بلال عبدالعزيز احمد",{"$f":"SUM(Sheet2!C106:AF106)","v":1},{"$f":"Sheet1!$B106*65","v":65},null,65]
["بلال عطيه على احمد",{"$f":"SUM(Sheet2!C107:AF107)","v":30},{"$f":"Sheet1!$B107*65","v":1950},null,1950]
["بلال محمد عبدالتواب",{"$f":"SUM(Sheet2!C108:AF108)","v":1},{"$f":"Sheet1!$B108*65","v":65},null,65]
["بلال محمد عبدالعزيز محمد علي",{"$f":"SUM(Sheet2!C109:AF109)","v":47},{"$f":"Sheet1!$B109*65","v":3055},null,3055]
["بيشوي رضا جرجس سعد",{"$f":"SUM(Sheet2!C110:AF110)","v":13},{"$f":"Sheet1!$B110*65","v":845},null,845]
["جابر صبري محمود اسماعيل",{"$f":"SUM(Sheet2!C111:AF111)","v":1},{"$f":"Sheet1!$B111*65","v":65},null,65]
["جاد رزق عبدالعزيز احمد شعيشع",{"$f":"SUM(Sheet2!C112:AF112)","v":1},{"$f":"Sheet1!$B112*65","v":65},null,65]
["جرجس موريس وهيب",{"$f":"SUM(Sheet2!C113:AF113)","v":1},{"$f":"Sheet1!$B113*65","v":65},null,65]
["جمعه حمدي زكي محمد",{"$f":"SUM(Sheet2!C114:AF114)","v":10},{"$f":"Sheet1!$B114*65","v":650},null,650]
["حازم عبدالجليل احمد",{"$f":"SUM(Sheet2!C115:AF115)","v":2},{"$f":"Sheet1!$B115*65","v":130},null,130]
["حسام عصام فتحي محمد",{"$f":"SUM(Sheet2!C116:AF116)","v":4},{"$f":"Sheet1!$B116*65","v":260},null,260]
["حسام فتحي احمد الشامي",{"$f":"SUM(Sheet2!C117:AF117)","v":4},{"$f":"Sheet1!$B117*65","v":260},null,260]
["حسام كريم ابراهيم السيد",{"$f":"SUM(Sheet2!C118:AF118)","v":3},{"$f":"Sheet1!$B118*65","v":195},null,195]
["حسام محمد محمود يوسف",{"$f":"SUM(Sheet2!C119:AF119)","v":4},{"$f":"Sheet1!$B119*65","v":260},null,260]
["حسام نبيل محمود ",{"$f":"SUM(Sheet2!C120:AF120)","v":3},{"$f":"Sheet1!$B120*65","v":195},null,195]
["حسب النبي سعيد فتحي",{"$f":"SUM(Sheet2!C121:AF121)","v":20},{"$f":"Sheet1!$B121*65","v":1300},null,1300]
["حسن الحسيني مسعد",{"$f":"SUM(Sheet2!C122:AF122)","v":6},{"$f":"Sheet1!$B122*65","v":390},null,390]
["حسن رمضان السيد سليم",{"$f":"SUM(Sheet2!C123:AF123)","v":1},{"$f":"Sheet1!$B123*65","v":65},null,65]
["حسن سامي سعيد",{"$f":"SUM(Sheet2!C124:AF124)","v":4},{"$f":"Sheet1!$B124*65","v":260},null,260]
["حسن سامي سعيد الكر",{"$f":"SUM(Sheet2!C125:AF125)","v":2},{"$f":"Sheet1!$B125*65","v":130},null,130]
["حسن عبدالغفار محمد عبدالعليم",{"$f":"SUM(Sheet2!C126:AF126)","v":4},{"$f":"Sheet1!$B126*65","v":260},null,260]
["حسني عزالدين عبدالفضيل",{"$f":"SUM(Sheet2!C127:AF127)","v":19},{"$f":"Sheet1!$B127*65","v":1235},null,1235]
["حسين عبدالغنى السيد محمد",{"$f":"SUM(Sheet2!C128:AF128)","v":26},{"$f":"Sheet1!$B128*65","v":1690},null,1690]
["حماده رجب عبدالحفيظ",{"$f":"SUM(Sheet2!C129:AF129)","v":1},{"$f":"Sheet1!$B129*65","v":65},null,65]
["حماده مرعي سعد محمد",{"$f":"SUM(Sheet2!C130:AF130)","v":1},{"$f":"Sheet1!$B130*65","v":65},null,65]
["خالد عوض السيد عبدالرحمن",{"$f":"SUM(Sheet2!C131:AF131)","v":13},{"$f":"Sheet1!$B131*65","v":845},null,{"$f":"$C131-$D131","v":845}]
["خالد محمود محمد عبداللطيف",{"$f":"SUM(Sheet2!C132:AF132)","v":16},{"$f":"Sheet1!$B132*65","v":1040},null,1040]
["خيري احمد عبدالغني هنداوي",{"$f":"SUM(Sheet2!C133:AF133)","v":7},{"$f":"Sheet1!$B133*65","v":455},null,455]
["درويش الجوهري ابراهيم البري",{"$f":"SUM(Sheet2!C134:AF134)","v":5},{"$f":"Sheet1!$B134*65","v":325},null,325]
["درويش رافت درويش",{"$f":"SUM(Sheet2!C135:AF135)","v":45},{"$f":"Sheet1!$B135*65","v":2925},null,2925]
["راجي محمد الصباحي",{"$f":"SUM(Sheet2!C136:AF136)","v":7},{"$f":"Sheet1!$B136*65","v":455},null,455]
["راعي سيد علي بربر ",{"$f":"SUM(Sheet2!C137:AF137)","v":19},{"$f":"Sheet1!$B137*65","v":1235},null,1235]
["رافت اشرف رفعت امين",{"$f":"SUM(Sheet2!C138:AF138)","v":13},{"$f":"Sheet1!$B138*65","v":845},null,845]
["رافت كامل عبدالله  عبدالعزيز",{"$f":"SUM(Sheet2!C139:AF139)","v":1},{"$f":"Sheet1!$B139*65","v":65},null,65]
["رزق علاء رجب نصر عيسي",{"$f":"SUM(Sheet2!C140:AF140)","v":3},{"$f":"Sheet1!$B140*65","v":195},null,195]
["رزق محمد رزق اسماعيل",{"$f":"SUM(Sheet2!C141:AF141)","v":1},{"$f":"Sheet1!$B141*65","v":65},null,65]
["رضا غريب صقر محمد",{"$f":"SUM(Sheet2!C142:AF142)","v":1},{"$f":"Sheet1!$B142*65","v":65},null,65]
["رضا معوض عباس",{"$f":"SUM(Sheet2!C143:AF143)","v":2},{"$f":"Sheet1!$B143*65","v":130},null,130]
["رضوان شحاته احمد",{"$f":"SUM(Sheet2!C144:AF144)","v":1},{"$f":"Sheet1!$B144*65","v":65},null,65]
["رفعت اشرف رفعت امين",{"$f":"SUM(Sheet2!C145:AF145)","v":12},{"$f":"Sheet1!$B145*65","v":780},null,780]
["زكريا عبدالفتاح عبدالحميد",{"$f":"SUM(Sheet2!C146:AF146)","v":26},{"$f":"Sheet1!$B146*65","v":1690},null,1690]
["زياد سالم احمد فراج",{"$f":"SUM(Sheet2!C147:AF147)","v":10},{"$f":"Sheet1!$B147*65","v":650},null,650]
["سامح انور طلبه عطاالله",{"$f":"SUM(Sheet2!C148:AF148)","v":9},{"$f":"Sheet1!$B148*65","v":585},null,585]
["سامح عابدين محمد علي",{"$f":"SUM(Sheet2!C149:AF149)","v":5},{"$f":"Sheet1!$B149*65","v":325},null,325]
["سامي صبري جبر علي",{"$f":"SUM(Sheet2!C150:AF150)","v":16},{"$f":"Sheet1!$B150*65","v":1040},null,1040]
["سامي عبدالله محمد سيد احمد",{"$f":"SUM(Sheet2!C151:AF151)","v":11},{"$f":"Sheet1!$B151*65","v":715},null,715]
["سامي محمد عبده السيسي",{"$f":"SUM(Sheet2!C152:AF152)","v":31},{"$f":"Sheet1!$B152*65","v":2015},null,2015]
["سعد محمد سعد خرش",{"$f":"SUM(Sheet2!C153:AF153)","v":1},{"$f":"Sheet1!$B153*65","v":65},null,65]
["سعودي محمد طلبه محمد",{"$f":"SUM(Sheet2!C154:AF154)","v":1},{"$f":"Sheet1!$B154*65","v":65},null,65]
["سعودي محمد عطيه",{"$f":"SUM(Sheet2!C155:AF155)","v":33},{"$f":"Sheet1!$B155*65","v":2145},null,2145]
["سعيد علي عبدالهادي ",{"$f":"SUM(Sheet2!C156:AF156)","v":18},{"$f":"Sheet1!$B156*65","v":1170},null,1170]
["سليم اسماعيل بيومي سليم ",{"$f":"SUM(Sheet2!C157:AF157)","v":7},{"$f":"Sheet1!$B157*65","v":455},null,455]
["سليم عمار رحصان عيد",{"$f":"SUM(Sheet2!C158:AF158)","v":0},{"$f":"Sheet1!$B158*65","v":0},null,0]
["سيد فاروق فؤاد سعد",{"$f":"SUM(Sheet2!C159:AF159)","v":3},{"$f":"Sheet1!$B159*65","v":195},null,195]
["شامل مبروك حسن محمد",{"$f":"SUM(Sheet2!C160:AF160)","v":1},{"$f":"Sheet1!$B160*65","v":65},null,65]
["شريف احمد محمد عبدالله",{"$f":"SUM(Sheet2!C161:AF161)","v":19},{"$f":"Sheet1!$B161*65","v":1235},null,1235]
["شريف عبدالعزيز علي هندي",{"$f":"SUM(Sheet2!C162:AF162)","v":7},{"$f":"Sheet1!$B162*65","v":455},null,455]
["شريف عمر امين محمد",{"$f":"SUM(Sheet2!C163:AF163)","v":21},{"$f":"Sheet1!$B163*65","v":1365},null,1365]
["شعبان الشحات المتولي الشوكي",{"$f":"SUM(Sheet2!C164:AF164)","v":1},{"$f":"Sheet1!$B164*65","v":65},null,65]
["شعبان بلبل الشحات المتولي",{"$f":"SUM(Sheet2!C165:AF165)","v":43},{"$f":"Sheet1!$B165*65","v":2795},null,2795]
["شعبان حمدي شعبان الهليس",{"$f":"SUM(Sheet2!C166:AF166)","v":1},{"$f":"Sheet1!$B166*65","v":65},null,65]
["شعبان عبدالكريم علواني عبدالكريم",{"$f":"SUM(Sheet2!C167:AF167)","v":6},{"$f":"Sheet1!$B167*65","v":390},null,390]
["شكر صابر ابراهيم رضوان",{"$f":"SUM(Sheet2!C168:AF168)","v":21},{"$f":"Sheet1!$B168*65","v":1365},null,1365]
["شهاب ابراهيم فرج عبدالعزيز",{"$f":"SUM(Sheet2!C169:AF169)","v":1},{"$f":"Sheet1!$B169*65","v":65},null,65]
["صابر صبري محمود اسماعيل",{"$f":"SUM(Sheet2!C170:AF170)","v":11},{"$f":"Sheet1!$B170*65","v":715},null,715]
["صادق عيد السيد عبدالرحمن",{"$f":"SUM(Sheet2!C171:AF171)","v":2},{"$f":"Sheet1!$B171*65","v":130},null,130]
["صبحي توفيق السيد",{"$f":"SUM(Sheet2!C172:AF172)","v":18},{"$f":"Sheet1!$B172*65","v":1170},null,1170]
["ضياء محمد محمد شحاته بحيري",{"$f":"SUM(Sheet2!C173:AF173)","v":1},{"$f":"Sheet1!$B173*65","v":65},null,65]
["طارق عبدالفتاح السعيد عبدالباقي",{"$f":"SUM(Sheet2!C174:AF174)","v":16},{"$f":"Sheet1!$B174*65","v":1040},null,1040]
["طارق عرفه عنتر زراع",{"$f":"SUM(Sheet2!C175:AF175)","v":19},{"$f":"Sheet1!$B175*65","v":1235},null,1235]
["طارق محمود محمود عبدالمعطي",{"$f":"SUM(Sheet2!C176:AF176)","v":28},{"$f":"Sheet1!$B176*65","v":1820},null,1820]
["طه حسن حسن الهندي",{"$f":"SUM(Sheet2!C177:AF177)","v":38},{"$f":"Sheet1!$B177*65","v":2470},null,2470]
["طه عيد عبدالله شحاته",{"$f":"SUM(Sheet2!C178:AF178)","v":12},{"$f":"Sheet1!$B178*65","v":780},null,780]
["عاصم السيد عبدالرحمن الدسوقي",{"$f":"SUM(Sheet2!C179:AF179)","v":2},{"$f":"Sheet1!$B179*65","v":130},null,130]
["عاطف ابراهيم حليم مشحوت",{"$f":"SUM(Sheet2!C180:AF180)","v":6},{"$f":"Sheet1!$B180*65","v":390},null,390]
["عاطف محمد محمد دراز",{"$f":"SUM(Sheet2!C181:AF181)","v":20},{"$f":"Sheet1!$B181*65","v":1300},null,1300]
["عامر ابراهيم عامر بدوي",{"$f":"SUM(Sheet2!C182:AF182)","v":7},{"$f":"Sheet1!$B182*65","v":455},null,455]
["عامر حبشي محمد حبشي",{"$f":"SUM(Sheet2!C183:AF183)","v":40},{"$f":"Sheet1!$B183*65","v":2600},null,2600]
["عبدالحميد غريب عبدالحميد",{"$f":"SUM(Sheet2!C184:AF184)","v":24},{"$f":"Sheet1!$B184*65","v":1560},null,1560]
["عبدالرحمن ابراهيم عبدالغني الطوخي",{"$f":"SUM(Sheet2!C185:AF185)","v":3},{"$f":"Sheet1!$B185*65","v":195},null,195]
["عبدالرحمن ابراهيم عيد الفقي",{"$f":"SUM(Sheet2!C186:AF186)","v":3},{"$f":"Sheet1!$B186*65","v":195},null,195]
["عبدالرحمن سالم عبدالرحمن",{"$f":"SUM(Sheet2!C187:AF187)","v":13},{"$f":"Sheet1!$B187*65","v":845},null,845]
["عبدالرحمن عبداللاه عبدالعزيز طه",{"$f":"SUM(Sheet2!C188:AF188)","v":9},{"$f":"Sheet1!$B188*65","v":585},null,585]
["عبدالرحمن محمد زياد محمد ",{"$f":"SUM(Sheet2!C189:AF189)","v":2},{"$f":"Sheet1!$B189*65","v":130},null,130]
["عبدالستارعيدعبدالستارعيسي ",{"$f":"SUM(Sheet2!C190:AF190)","v":11},{"$f":"Sheet1!$B190*65","v":715},null,715]
["عبدالسلام فتحي شلبي",{"$f":"SUM(Sheet2!C191:AF191)","v":8},{"$f":"Sheet1!$B191*65","v":520},null,520]
["عبدالسلام فتحي محمد",{"$f":"SUM(Sheet2!C192:AF192)","v":2},{"$f":"Sheet1!$B192*65","v":130},null,130]
["عبدالسلام مصطفي علي",{"$f":"SUM(Sheet2!C193:AF193)","v":1},{"$f":"Sheet1!$B193*65","v":65},null,65]
["عبدالعزيز حمدي عبدالعزيز محمد",{"$f":"SUM(Sheet2!C194:AF194)","v":1},{"$f":"Sheet1!$B194*65","v":65},null,65]
["عبدالغفار محمد منير",{"$f":"SUM(Sheet2!C195:AF195)","v":10},{"$f":"Sheet1!$B195*65","v":650},null,{"$f":"$C195-$D195","v":650}]
["عبدالغفور محمد عبالغفور دره",{"$f":"SUM(Sheet2!C196:AF196)","v":5},{"$f":"Sheet1!$B196*65","v":325},null,325]
["عبدالغني جمال عاشور محمد",{"$f":"SUM(Sheet2!C197:AF197)","v":8},{"$f":"Sheet1!$B197*65","v":520},null,520]
["عبدالفتاح جمعه عبدالحكيم جمعه",{"$f":"SUM(Sheet2!C198:AF198)","v":3},{"$f":"Sheet1!$B198*65","v":195},null,195]
["عبدالفتاح عبدالقوي عبدالفتاح",{"$f":"SUM(Sheet2!C199:AF199)","v":22},{"$f":"Sheet1!$B199*65","v":1430},null,1430]
["عبدالكريم محمد محمود",{"$f":"SUM(Sheet2!C200:AF200)","v":1},{"$f":"Sheet1!$B200*65","v":65},null,65]
["عبدالله ابوالسعود عبدالمجيد",{"$f":"SUM(Sheet2!C201:AF201)","v":25},{"$f":"Sheet1!$B201*65","v":1625},null,1625]
["عبدالله ابوبكر سلامه",{"$f":"SUM(Sheet2!C202:AF202)","v":1},{"$f":"Sheet1!$B202*65","v":65},null,65]
["عبدالله احمد كامل علي عويان",{"$f":"SUM(Sheet2!C203:AF203)","v":22},{"$f":"Sheet1!$B203*65","v":1430},null,1430]
["عبدالله حسين احمد جاد الرب",{"$f":"SUM(Sheet2!C204:AF204)","v":7},{"$f":"Sheet1!$B204*65","v":455},null,455]
["عبدالله سالم عبدالرحمن",{"$f":"SUM(Sheet2!C205:AF205)","v":1},{"$f":"Sheet1!$B205*65","v":65},null,65]
["عبدالله سامي مصطفي الجمال",{"$f":"SUM(Sheet2!C206:AF206)","v":5},{"$f":"Sheet1!$B206*65","v":325},null,325]
["عبدالله سامي مصطفي كامل القط",{"$f":"SUM(Sheet2!C207:AF207)","v":6},{"$f":"Sheet1!$B207*65","v":390},null,390]
["عبدالله شعبان عبدالله",{"$f":"SUM(Sheet2!C208:AF208)","v":17},{"$f":"Sheet1!$B208*65","v":1105},null,1105]
["عبدالله عبدالحميد عبدالله",{"$f":"SUM(Sheet2!C209:AF209)","v":1},{"$f":"Sheet1!$B209*65","v":65},null,65]
["عبدالله عبدالصادق محمد ",{"$f":"SUM(Sheet2!C210:AF210)","v":2},{"$f":"Sheet1!$B210*65","v":130},null,130]
["عبدالله علي عبدالله علي",{"$f":"SUM(Sheet2!C211:AF211)","v":6},{"$f":"Sheet1!$B211*65","v":390},null,390]
["عبدالله فوزي عبدالله مرجان",{"$f":"SUM(Sheet2!C212:AF212)","v":14},{"$f":"Sheet1!$B212*65","v":910},null,910]
["عبدالله محمد الصافي عبدالفتاح",{"$f":"SUM(Sheet2!C213:AF213)","v":1},{"$f":"Sheet1!$B213*65","v":65},null,65]
["عبدالله محمد صبحي متولي",{"$f":"SUM(Sheet2!C214:AF214)","v":1},{"$f":"Sheet1!$B214*65","v":65},null,65]
["عبدالله محمد عبدالله خليفه محمد",{"$f":"SUM(Sheet2!C215:AF215)","v":5},{"$f":"Sheet1!$B215*65","v":325},null,325]
["عبدالناصر احمد عبدالوهاب",{"$f":"SUM(Sheet2!C216:AF216)","v":17},{"$f":"Sheet1!$B216*65","v":1105},null,1105]
["عبدالنبي حسين عبداللطيف",{"$f":"SUM(Sheet2!C217:AF217)","v":11},{"$f":"Sheet1!$B217*65","v":715},null,715]
["عبدالواحد كمال عبدالواحد",{"$f":"SUM(Sheet2!C218:AF218)","v":2},{"$f":"Sheet1!$B218*65","v":130},null,130]
["عز الدين فتحي قرني بكر",{"$f":"SUM(Sheet2!C219:AF219)","v":5},{"$f":"Sheet1!$B219*65","v":325},null,325]
["عزت محمد ابوالعز",{"$f":"SUM(Sheet2!C220:AF220)","v":4},{"$f":"Sheet1!$B220*65","v":260},null,260]
["عطيه مصطفي السيد الجنزوري",{"$f":"SUM(Sheet2!C221:AF221)","v":1},{"$f":"Sheet1!$B221*65","v":65},null,65]
["علاء جمعه التايب جمعه",{"$f":"SUM(Sheet2!C222:AF222)","v":18},{"$f":"Sheet1!$B222*65","v":1170},null,1170]
["علي احمد علي قنديل",{"$f":"SUM(Sheet2!C223:AF223)","v":47},{"$f":"Sheet1!$B223*65","v":3055},null,3055]
["علي احمدعلي عوض العزب",{"$f":"SUM(Sheet2!C224:AF224)","v":23},{"$f":"Sheet1!$B224*65","v":1495},null,1495]
["علي السيد رياض ",{"$f":"SUM(Sheet2!C225:AF225)","v":5},{"$f":"Sheet1!$B225*65","v":325},null,325]
["علي صلاح علي سليمان",{"$f":"SUM(Sheet2!C226:AF226)","v":16},{"$f":"Sheet1!$B226*65","v":1040},null,1040]
["علي عبدالباسط علي الجندي",{"$f":"SUM(Sheet2!C227:AF227)","v":4},{"$f":"Sheet1!$B227*65","v":260},null,260]
["علي عبدالهادي علي",{"$f":"SUM(Sheet2!C228:AF228)","v":6},{"$f":"Sheet1!$B228*65","v":390},null,390]
["علي عيسي امين عيسي",{"$f":"SUM(Sheet2!C229:AF229)","v":5},{"$f":"Sheet1!$B229*65","v":325},null,325]
["علي غزالي ابراهيم",{"$f":"SUM(Sheet2!C230:AF230)","v":1},{"$f":"Sheet1!$B230*65","v":65},null,65]
["علي محمد علي توفيق",{"$f":"SUM(Sheet2!C231:AF231)","v":7},{"$f":"Sheet1!$B231*65","v":455},null,455]
["علي محمود محمد محمود الدجاج",{"$f":"SUM(Sheet2!C232:AF232)","v":29},{"$f":"Sheet1!$B232*65","v":1885},null,1885]
["عماد عبدالله مصطفي عبدالله",{"$f":"SUM(Sheet2!C233:AF233)","v":14},{"$f":"Sheet1!$B233*65","v":910},null,910]
["عماد محمد عبداللاه معوض",{"$f":"SUM(Sheet2!C234:AF234)","v":14},{"$f":"Sheet1!$B234*65","v":910},null,910]
["عمارمحمد مصطفي شحاته",{"$f":"SUM(Sheet2!C235:AF235)","v":1},{"$f":"Sheet1!$B235*65","v":65},null,65]
["عمر عبدالعال سليمان عثمان",{"$f":"SUM(Sheet2!C236:AF236)","v":0},{"$f":"Sheet1!$B236*65","v":0},null,0]
["عمر فتحي عبدالفتاح احمد",{"$f":"SUM(Sheet2!C237:AF237)","v":1},{"$f":"Sheet1!$B237*65","v":65},null,65]
["عمر ممدوح ابراهيم جويده",{"$f":"SUM(Sheet2!C238:AF238)","v":1},{"$f":"Sheet1!$B238*65","v":65},null,65]
["عمرو ثابت عبدالفتاح علي",{"$f":"SUM(Sheet2!C239:AF239)","v":22},{"$f":"Sheet1!$B239*65","v":1430},null,1430]
["عمرو حامد عبدالله قناوي",{"$f":"SUM(Sheet2!C240:AF240)","v":4},{"$f":"Sheet1!$B240*65","v":260},null,260]
["عمرو حامد عطا الله قناوي",{"$f":"SUM(Sheet2!C241:AF241)","v":20},{"$f":"Sheet1!$B241*65","v":1300},null,1300]
["عمرو عبدالصمد محمد",{"$f":"SUM(Sheet2!C242:AF242)","v":2},{"$f":"Sheet1!$B242*65","v":130},null,130]
["عمرو محمد حسن عبدالغني",{"$f":"SUM(Sheet2!C243:AF243)","v":11},{"$f":"Sheet1!$B243*65","v":715},null,715]
["عمرو محمد عبدالصمد",{"$f":"SUM(Sheet2!C244:AF244)","v":40},{"$f":"Sheet1!$B244*65","v":2600},null,2600]
["عمرو محمد عبدالفتاح",{"$f":"SUM(Sheet2!C245:AF245)","v":3},{"$f":"Sheet1!$B245*65","v":195},null,195]
["عمرو محمد فهمي خليفه",{"$f":"SUM(Sheet2!C246:AF246)","v":2},{"$f":"Sheet1!$B246*65","v":130},null,130]
["عيد عبدالمنعم عيد عجيبه",{"$f":"SUM(Sheet2!C247:AF247)","v":12},{"$f":"Sheet1!$B247*65","v":780},null,780]
["فارس رشاد حماد عبدالهادي",{"$f":"SUM(Sheet2!C248:AF248)","v":15},{"$f":"Sheet1!$B248*65","v":975},null,975]
["فارس صبري رزق",{"$f":"SUM(Sheet2!C249:AF249)","v":1},{"$f":"Sheet1!$B249*65","v":65},null,65]
["فارس ياسر احمد عبدالعليم علي",{"$f":"SUM(Sheet2!C250:AF250)","v":1},{"$f":"Sheet1!$B250*65","v":65},null,65]
["فايز عبدالله احمد ابراهيم",{"$f":"SUM(Sheet2!C251:AF251)","v":18},{"$f":"Sheet1!$B251*65","v":1170},null,1170]
["فتحي احمد محمد عبده الحريري",{"$f":"SUM(Sheet2!C252:AF252)","v":2},{"$f":"Sheet1!$B252*65","v":130},null,130]
["فهمي عباس عبدالدايم حلفايه",{"$f":"SUM(Sheet2!C253:AF253)","v":4},{"$f":"Sheet1!$B253*65","v":260},null,260]
["فوقي جلال عبده النحري",{"$f":"SUM(Sheet2!C254:AF254)","v":1},{"$f":"Sheet1!$B254*65","v":65},null,65]
["كامل عبدالله كامل الشيخ",{"$f":"SUM(Sheet2!C255:AF255)","v":3},{"$f":"Sheet1!$B255*65","v":195},null,195]
["كريم سليمان عيد عبدالمحسن",{"$f":"SUM(Sheet2!C256:AF256)","v":3},{"$f":"Sheet1!$B256*65","v":195},null,195]
["كريم عبدالحارس عبدالراضي",{"$f":"SUM(Sheet2!C257:AF257)","v":5},{"$f":"Sheet1!$B257*65","v":325},null,325]
["كريم عبدالقوي عبدالفتاح",{"$f":"SUM(Sheet2!C258:AF258)","v":22},{"$f":"Sheet1!$B258*65","v":1430},null,1430]
["كمال شريف عبدالمجيد بشر",{"$f":"SUM(Sheet2!C259:AF259)","v":6},{"$f":"Sheet1!$B259*65","v":390},null,{"$f":"$C259-$D259","v":390}]
["كيرلس صلاح رزق الله",{"$f":"SUM(Sheet2!C260:AF260)","v":3},{"$f":"Sheet1!$B260*65","v":195},null,195]
["كيرلس غندي رزق مللك",{"$f":"SUM(Sheet2!C261:AF261)","v":1},{"$f":"Sheet1!$B261*65","v":65},null,65]
["كيرلس فادي ناجي",{"$f":"SUM(Sheet2!C262:AF262)","v":10},{"$f":"Sheet1!$B262*65","v":650},null,650]
["ماهر احمد علي حماد",{"$f":"SUM(Sheet2!C263:AF263)","v":25},{"$f":"Sheet1!$B263*65","v":1625},null,1625]
["مبروك عبدالسلام عمار ابراهيم",{"$f":"SUM(Sheet2!C264:AF264)","v":39},{"$f":"Sheet1!$B264*65","v":2535},null,2535]
["مبروك محمود مبروك مطر",{"$f":"SUM(Sheet2!C265:AF265)","v":28},{"$f":"Sheet1!$B265*65","v":1820},null,1820]
["مجدي زكريا عباس",{"$f":"SUM(Sheet2!C266:AF266)","v":14},{"$f":"Sheet1!$B266*65","v":910},null,910]
["محمد ابراهيم السيد ابراهيم",{"$f":"SUM(Sheet2!C267:AF267)","v":15},{"$f":"Sheet1!$B267*65","v":975},null,975]
["محمد ابراهيم عاشور عبدالوهاب",{"$f":"SUM(Sheet2!C268:AF268)","v":6},{"$f":"Sheet1!$B268*65","v":390},null,390]
["محمد ابراهيم عبدالمنعم مغربي",{"$f":"SUM(Sheet2!C269:AF269)","v":0},{"$f":"Sheet1!$B269*65","v":0},null,0]
["محمد ابراهيم محمود سليمان",{"$f":"SUM(Sheet2!C270:AF270)","v":22},{"$f":"Sheet1!$B270*65","v":1430},null,1430]
["محمد احمد رفاعي محمد البياع",{"$f":"SUM(Sheet2!C271:AF271)","v":3},{"$f":"Sheet1!$B271*65","v":195},null,195]
["محمد احمد زكريا شهبو",{"$f":"SUM(Sheet2!C272:AF272)","v":34},{"$f":"Sheet1!$B272*65","v":2210},null,2210]
["محمد احمد سيد احمد محفوظ",{"$f":"SUM(Sheet2!C273:AF273)","v":2},{"$f":"Sheet1!$B273*65","v":130},null,130]
["محمد احمد عبدالحكم عبدالمطلب",{"$f":"SUM(Sheet2!C274:AF274)","v":2},{"$f":"Sheet1!$B274*65","v":130},null,130]
["محمد احمد عبدالرحيم",{"$f":"SUM(Sheet2!C275:AF275)","v":1},{"$f":"Sheet1!$B275*65","v":65},null,65]
["محمد احمد عبدالمجيد عسل",{"$f":"SUM(Sheet2!C276:AF276)","v":21},{"$f":"Sheet1!$B276*65","v":1365},null,1365]
["محمد احمد عبدالمقصود شتله ",{"$f":"SUM(Sheet2!C277:AF277)","v":19},{"$f":"Sheet1!$B277*65","v":1235},null,1235]
["محمد احمد علي قنديل",{"$f":"SUM(Sheet2!C278:AF278)","v":0},{"$f":"Sheet1!$B278*65","v":0},null,0]
["محمد احمد عيداحمد",{"$f":"SUM(Sheet2!C279:AF279)","v":2},{"$f":"Sheet1!$B279*65","v":130},null,130]
["محمد احمد محمد عبدالله",{"$f":"SUM(Sheet2!C280:AF280)","v":1},{"$f":"Sheet1!$B280*65","v":65},null,65]
["محمد احمد مرضي",{"$f":"SUM(Sheet2!C281:AF281)","v":6},{"$f":"Sheet1!$B281*65","v":390},null,390]
["محمد اسماعيل محمد احمد الديب",{"$f":"SUM(Sheet2!C282:AF282)","v":3},{"$f":"Sheet1!$B282*65","v":195},null,195]
["محمد اشرف محمد محمود",{"$f":"SUM(Sheet2!C283:AF283)","v":2},{"$f":"Sheet1!$B283*65","v":130},null,130]
["محمد السطوحي محمد عبدالعال",{"$f":"SUM(Sheet2!C284:AF284)","v":4},{"$f":"Sheet1!$B284*65","v":260},null,260]
["محمد السعيد عبدالجواد",{"$f":"SUM(Sheet2!C285:AF285)","v":3},{"$f":"Sheet1!$B285*65","v":195},null,195]
["محمد الشحات عبدالحميد",{"$f":"SUM(Sheet2!C286:AF286)","v":5},{"$f":"Sheet1!$B286*65","v":325},null,325]
["محمد امين عبدالحميد شلبي",{"$f":"SUM(Sheet2!C287:AF287)","v":18},{"$f":"Sheet1!$B287*65","v":1170},null,1170]
["محمد انور خميس السيد",{"$f":"SUM(Sheet2!C288:AF288)","v":2},{"$f":"Sheet1!$B288*65","v":130},null,130]
["محمد جمال عبدالفضيل ابراهيم ",{"$f":"SUM(Sheet2!C289:AF289)","v":1},{"$f":"Sheet1!$B289*65","v":65},null,65]
["محمد جمعه عبدالحكيم",{"$f":"SUM(Sheet2!C290:AF290)","v":2},{"$f":"Sheet1!$B290*65","v":130},null,130]
["محمد جمعه عبدالعظيم محمد",{"$f":"SUM(Sheet2!C291:AF291)","v":13},{"$f":"Sheet1!$B291*65","v":845},null,845]
["محمد حسام الدين محمد عباس",{"$f":"SUM(Sheet2!C292:AF292)","v":1},{"$f":"Sheet1!$B292*65","v":65},null,65]
["محمد حسن صابر احمد",{"$f":"SUM(Sheet2!C293:AF293)","v":5},{"$f":"Sheet1!$B293*65","v":325},null,325]
["محمد حسني خيرت عبدالعزيز",{"$f":"SUM(Sheet2!C294:AF294)","v":1},{"$f":"Sheet1!$B294*65","v":65},null,65]
["محمد حمدي محمد علي ",{"$f":"SUM(Sheet2!C295:AF295)","v":1},{"$f":"Sheet1!$B295*65","v":65},null,65]
["محمد خالد حلمي الشمالي",{"$f":"SUM(Sheet2!C296:AF296)","v":4},{"$f":"Sheet1!$B296*65","v":260},null,260]
["محمد رجب عبدالظاهر عيد",{"$f":"SUM(Sheet2!C297:AF297)","v":1},{"$f":"Sheet1!$B297*65","v":65},null,65]
["محمد رضا ابراهيم مبروك",{"$f":"SUM(Sheet2!C298:AF298)","v":4},{"$f":"Sheet1!$B298*65","v":260},null,260]
["محمد رضا محمد علي اسماعيل",{"$f":"SUM(Sheet2!C299:AF299)","v":20},{"$f":"Sheet1!$B299*65","v":1300},null,1300]
["محمد زكريا عبده البربري",{"$f":"SUM(Sheet2!C300:AF300)","v":13},{"$f":"Sheet1!$B300*65","v":845},null,845]
["محمد سامي عبدالعزيز محمد",{"$f":"SUM(Sheet2!C301:AF301)","v":1},{"$f":"Sheet1!$B301*65","v":65},null,65]
["محمد سعيد قطب محمود",{"$f":"SUM(Sheet2!C302:AF302)","v":2},{"$f":"Sheet1!$B302*65","v":130},null,130]
["محمد سمير حسن عامر",{"$f":"SUM(Sheet2!C303:AF303)","v":25},{"$f":"Sheet1!$B303*65","v":1625},null,1625]
["محمد شديد حسن  مراجعه علي الاسم",{"$f":"SUM(Sheet2!C304:AF304)","v":1},{"$f":"Sheet1!$B304*65","v":65},null,65]
["محمد صبحي محمد الوكيل",{"$f":"SUM(Sheet2!C305:AF305)","v":0},{"$f":"Sheet1!$B305*65","v":0},null,0]
["محمد صبري محمد حميده",{"$f":"SUM(Sheet2!C306:AF306)","v":19},{"$f":"Sheet1!$B306*65","v":1235},null,1235]
["محمد صبري محمود الشرقاوي",{"$f":"SUM(Sheet2!C307:AF307)","v":1},{"$f":"Sheet1!$B307*65","v":65},null,65]
["محمد طارق سعيد محمد",{"$f":"SUM(Sheet2!C308:AF308)","v":12},{"$f":"Sheet1!$B308*65","v":780},null,780]
["محمد طلعت سيد عبدالرحيم",{"$f":"SUM(Sheet2!C309:AF309)","v":1},{"$f":"Sheet1!$B309*65","v":65},null,65]
["محمد عبدالباسط محمد الطباخ",{"$f":"SUM(Sheet2!C310:AF310)","v":12},{"$f":"Sheet1!$B310*65","v":780},null,780]
["محمد عبدالجليل حلاجي عبدالجليل",{"$f":"SUM(Sheet2!C311:AF311)","v":1},{"$f":"Sheet1!$B311*65","v":65},null,65]
["محمد عبدالحميد امين هندي",{"$f":"SUM(Sheet2!C312:AF312)","v":3},{"$f":"Sheet1!$B312*65","v":195},null,195]
["محمد عبدالرحيم عبدالمنعم",{"$f":"SUM(Sheet2!C313:AF313)","v":41},{"$f":"Sheet1!$B313*65","v":2665},null,2665]
["محمد عبدالعزيز محمد زايد",{"$f":"SUM(Sheet2!C314:AF314)","v":13},{"$f":"Sheet1!$B314*65","v":845},null,845]
["محمد عبدالغني جبر غنيم",{"$f":"SUM(Sheet2!C315:AF315)","v":5},{"$f":"Sheet1!$B315*65","v":325},null,325]
["محمد عبداللطيف احمد البسيوني",{"$f":"SUM(Sheet2!C316:AF316)","v":43},{"$f":"Sheet1!$B316*65","v":2795},null,2795]
["محمد عبداللطيف محمد عثمان",{"$f":"SUM(Sheet2!C317:AF317)","v":1},{"$f":"Sheet1!$B317*65","v":65},null,65]
["محمد عبده الهولي علي",{"$f":"SUM(Sheet2!C318:AF318)","v":21},{"$f":"Sheet1!$B318*65","v":1365},null,1365]
["محمد علي احمد علي مقبول",{"$f":"SUM(Sheet2!C319:AF319)","v":7},{"$f":"Sheet1!$B319*65","v":455},null,455]
["محمد علي محمود علي نبيده علي",{"$f":"SUM(Sheet2!C320:AF320)","v":3},{"$f":"Sheet1!$B320*65","v":195},null,195]
["محمد عمران حسن محمد",{"$f":"SUM(Sheet2!C321:AF321)","v":6},{"$f":"Sheet1!$B321*65","v":390},null,390]
["محمد غريب رفاعي البياع",{"$f":"SUM(Sheet2!C322:AF322)","v":3},{"$f":"Sheet1!$B322*65","v":195},null,195]
["محمد فتحي عبدالجليل",{"$f":"SUM(Sheet2!C323:AF323)","v":2},{"$f":"Sheet1!$B323*65","v":130},null,{"$f":"$C323-$D323","v":130}]
["محمد فتحي عبدالمجيد النجار",{"$f":"SUM(Sheet2!C324:AF324)","v":21},{"$f":"Sheet1!$B324*65","v":1365},null,1365]
["محمد فتحي عطية عبدالجليل ",{"$f":"SUM(Sheet2!C325:AF325)","v":26},{"$f":"Sheet1!$B325*65","v":1690},null,1690]
["محمد فتحي فكري احمد",{"$f":"SUM(Sheet2!C326:AF326)","v":3},{"$f":"Sheet1!$B326*65","v":195},null,195]
["محمد فتحي فوزي خالد",{"$f":"SUM(Sheet2!C327:AF327)","v":1},{"$f":"Sheet1!$B327*65","v":65},null,65]
["محمد فرج عبدالعزيز عبدالسلام",{"$f":"SUM(Sheet2!C328:AF328)","v":1},{"$f":"Sheet1!$B328*65","v":65},null,65]
["محمد فوزي صديق موسي",{"$f":"SUM(Sheet2!C329:AF329)","v":1},{"$f":"Sheet1!$B329*65","v":65},null,65]
["محمد كمال احمد محمد",{"$f":"SUM(Sheet2!C330:AF330)","v":5},{"$f":"Sheet1!$B330*65","v":325},null,325]
["محمد لطفي عطا",{"$f":"SUM(Sheet2!C331:AF331)","v":2},{"$f":"Sheet1!$B331*65","v":130},null,130]
["محمد محروس علي عبدالعزيز",{"$f":"SUM(Sheet2!C332:AF332)","v":1},{"$f":"Sheet1!$B332*65","v":65},null,65]
["محمد محمود ابراهيم الخولي",{"$f":"SUM(Sheet2!C333:AF333)","v":1},{"$f":"Sheet1!$B333*65","v":65},null,65]
["محمد محمود حماده اسماعيل",{"$f":"SUM(Sheet2!C334:AF334)","v":7},{"$f":"Sheet1!$B334*65","v":455},null,455]
["محمد محمود عبدالغفار عبدالهادي",{"$f":"SUM(Sheet2!C335:AF335)","v":1},{"$f":"Sheet1!$B335*65","v":65},null,65]
["محمد محمود علي محمود",{"$f":"SUM(Sheet2!C336:AF336)","v":14},{"$f":"Sheet1!$B336*65","v":910},null,910]
["محمد محمود محمد احمد",{"$f":"SUM(Sheet2!C337:AF337)","v":2},{"$f":"Sheet1!$B337*65","v":130},null,130]
["محمد محمود محمد السقا",{"$f":"SUM(Sheet2!C338:AF338)","v":14},{"$f":"Sheet1!$B338*65","v":910},null,910]
["محمد مخلص محمد محمد عوض",{"$f":"SUM(Sheet2!C339:AF339)","v":1},{"$f":"Sheet1!$B339*65","v":65},null,65]
["محمد ممدوح محمد عبدالجواد",{"$f":"SUM(Sheet2!C340:AF340)","v":14},{"$f":"Sheet1!$B340*65","v":910},null,910]
["محمد منصور عبدالمجيد",{"$f":"SUM(Sheet2!C341:AF341)","v":20},{"$f":"Sheet1!$B341*65","v":1300},null,1300]
["محمد مهدي سالم",{"$f":"SUM(Sheet2!C342:AF342)","v":10},{"$f":"Sheet1!$B342*65","v":650},null,650]
["محمد ناصر محمد سليم",{"$f":"SUM(Sheet2!C343:AF343)","v":3},{"$f":"Sheet1!$B343*65","v":195},null,195]
["محمد ناصرعبداللطيف محمود حسب النبي",{"$f":"SUM(Sheet2!C344:AF344)","v":1},{"$f":"Sheet1!$B344*65","v":65},null,65]
["محمد نور خميس السيد",{"$f":"SUM(Sheet2!C345:AF345)","v":2},{"$f":"Sheet1!$B345*65","v":130},null,130]
["محمد وليد محمود الشحات",{"$f":"SUM(Sheet2!C346:AF346)","v":2},{"$f":"Sheet1!$B346*65","v":130},null,130]
["محمد ياسر محمدعبدالحميد",{"$f":"SUM(Sheet2!C347:AF347)","v":9},{"$f":"Sheet1!$B347*65","v":585},null,585]
["محمد يحيي محمد مبروك",{"$f":"SUM(Sheet2!C348:AF348)","v":4},{"$f":"Sheet1!$B348*65","v":260},null,260]
["محمد يسري محمد رجب",{"$f":"SUM(Sheet2!C349:AF349)","v":4},{"$f":"Sheet1!$B349*65","v":260},null,260]
["محمود ابراهيم عاشور عبدالوهاب",{"$f":"SUM(Sheet2!C350:AF350)","v":2},{"$f":"Sheet1!$B350*65","v":130},null,130]
["محمود احمد عبدالمقصود عبدالعاطي",{"$f":"SUM(Sheet2!C351:AF351)","v":1},{"$f":"Sheet1!$B351*65","v":65},null,65]
["محمود احمد محمد حمزة",{"$f":"SUM(Sheet2!C352:AF352)","v":1},{"$f":"Sheet1!$B352*65","v":65},null,65]
["محمود اشرف محمد محمود",{"$f":"SUM(Sheet2!C353:AF353)","v":27},{"$f":"Sheet1!$B353*65","v":1755},null,1755]
["محمود بغدادي توفيق",{"$f":"SUM(Sheet2!C354:AF354)","v":20},{"$f":"Sheet1!$B354*65","v":1300},null,1300]
["محمود تحسين جاد الرب",{"$f":"SUM(Sheet2!C355:AF355)","v":29},{"$f":"Sheet1!$B355*65","v":1885},null,1885]
["محمود جلال عثمان",{"$f":"SUM(Sheet2!C356:AF356)","v":1},{"$f":"Sheet1!$B356*65","v":65},null,65]
["محمود جوده احمد علي",{"$f":"SUM(Sheet2!C357:AF357)","v":0},{"$f":"Sheet1!$B357*65","v":0},null,0]
["محمود حسن السيد احمد",{"$f":"SUM(Sheet2!C358:AF358)","v":7},{"$f":"Sheet1!$B358*65","v":455},null,455]
["محمود خليل عثمان البربري",{"$f":"SUM(Sheet2!C359:AF359)","v":18},{"$f":"Sheet1!$B359*65","v":1170},null,1170]
["محمود رجب عبدالظاهر ",{"$f":"SUM(Sheet2!C360:AF360)","v":27},{"$f":"Sheet1!$B360*65","v":1755},null,1755]
["محمود رفعت محمدالجزار",{"$f":"SUM(Sheet2!C361:AF361)","v":4},{"$f":"Sheet1!$B361*65","v":260},null,260]
["محمود سامي عبدالعزيز",{"$f":"SUM(Sheet2!C362:AF362)","v":22},{"$f":"Sheet1!$B362*65","v":1430},null,1430]
["محمود سعيد نجم ",{"$f":"SUM(Sheet2!C363:AF363)","v":5},{"$f":"Sheet1!$B363*65","v":325},null,325]
["محمود صبري محمود الشرقاوي",{"$f":"SUM(Sheet2!C364:AF364)","v":1},{"$f":"Sheet1!$B364*65","v":65},null,65]
["محمود عامر محمد متولي",{"$f":"SUM(Sheet2!C365:AF365)","v":3},{"$f":"Sheet1!$B365*65","v":195},null,195]
["محمود عبدالسميع السعيد عبدالجواد",{"$f":"SUM(Sheet2!C366:AF366)","v":44},{"$f":"Sheet1!$B366*65","v":2860},null,2860]
["محمود عيد محمد عبدالغني",{"$f":"SUM(Sheet2!C367:AF367)","v":1},{"$f":"Sheet1!$B367*65","v":65},null,65]
["محمود فتحي فوزي خالد",{"$f":"SUM(Sheet2!C368:AF368)","v":9},{"$f":"Sheet1!$B368*65","v":585},null,585]
["محمود فوزي صديق",{"$f":"SUM(Sheet2!C369:AF369)","v":18},{"$f":"Sheet1!$B369*65","v":1170},null,1170]
["محمود محمد احمدعبدالمقصود",{"$f":"SUM(Sheet2!C370:AF370)","v":32},{"$f":"Sheet1!$B370*65","v":2080},null,2080]
["محمود محمد محمد الشرباصي",{"$f":"SUM(Sheet2!C371:AF371)","v":6},{"$f":"Sheet1!$B371*65","v":390},null,390]
["محمود نمر وهيب ادم",{"$f":"SUM(Sheet2!C372:AF372)","v":29},{"$f":"Sheet1!$B372*65","v":1885},null,1885]
["محمود يوسف جامع احمد",{"$f":"SUM(Sheet2!C373:AF373)","v":5},{"$f":"Sheet1!$B373*65","v":325},null,325]
["محمود يوسف محمود مهدي",{"$f":"SUM(Sheet2!C374:AF374)","v":4},{"$f":"Sheet1!$B374*65","v":260},null,260]
["مختار علي محمد عبدالخالق",{"$f":"SUM(Sheet2!C375:AF375)","v":4},{"$f":"Sheet1!$B375*65","v":260},null,260]
["مختار محمد محمود محمد حسن",{"$f":"SUM(Sheet2!C376:AF376)","v":5},{"$f":"Sheet1!$B376*65","v":325},null,325]
["مصطفي احمد عبدالحميد عبدالمنصف",{"$f":"SUM(Sheet2!C377:AF377)","v":15},{"$f":"Sheet1!$B377*65","v":975},null,975]
["مصطفي احمد عيد عبدالحميد",{"$f":"SUM(Sheet2!C378:AF378)","v":5},{"$f":"Sheet1!$B378*65","v":325},null,325]
["مصطفي اسماعيل اسماعيل  ",{"$f":"SUM(Sheet2!C379:AF379)","v":18},{"$f":"Sheet1!$B379*65","v":1170},null,1170]
["مصطفي ايهاب محمد عبدالعليم",{"$f":"SUM(Sheet2!C380:AF380)","v":1},{"$f":"Sheet1!$B380*65","v":65},null,65]
["مصطفي سمير ابراهيم رزق",{"$f":"SUM(Sheet2!C381:AF381)","v":1},{"$f":"Sheet1!$B381*65","v":65},null,65]
["مصطفي صلاح عباس",{"$f":"SUM(Sheet2!C382:AF382)","v":5},{"$f":"Sheet1!$B382*65","v":325},null,325]
["مصطفي عبدالحميد عبدالمنصف",{"$f":"SUM(Sheet2!C383:AF383)","v":1},{"$f":"Sheet1!$B383*65","v":65},null,65]
["مصطفي عبدالقادر مبروك",{"$f":"SUM(Sheet2!C384:AF384)","v":3},{"$f":"Sheet1!$B384*65","v":195},null,195]
["مصطفي محمد محمد دراز",{"$f":"SUM(Sheet2!C385:AF385)","v":1},{"$f":"Sheet1!$B385*65","v":65},null,65]
["مصطفي محمود حافظ عاشور",{"$f":"SUM(Sheet2!C386:AF386)","v":1},{"$f":"Sheet1!$B386*65","v":65},null,65]
["مصطفي ناصر ثابت علي",{"$f":"SUM(Sheet2!C387:AF387)","v":9},{"$f":"Sheet1!$B387*65","v":585},null,{"$f":"$C387-$D387","v":585}]
["معاز ممدوح ابراهيم جويده",{"$f":"SUM(Sheet2!C388:AF388)","v":4},{"$f":"Sheet1!$B388*65","v":260},null,260]
["معتز سمير عبدربه محمد",{"$f":"SUM(Sheet2!C389:AF389)","v":17},{"$f":"Sheet1!$B389*65","v":1105},null,1105]
["مؤمن نور فتحي بدر",{"$f":"SUM(Sheet2!C390:AF390)","v":1},{"$f":"Sheet1!$B390*65","v":65},null,65]
["مينا ميلاد بباوي جبرايل",{"$f":"SUM(Sheet2!C391:AF391)","v":1},{"$f":"Sheet1!$B391*65","v":65},null,65]
["نادر الشحات بدير الشحات",{"$f":"SUM(Sheet2!C392:AF392)","v":2},{"$f":"Sheet1!$B392*65","v":130},null,130]
["نورالدين سيد معروف علي",{"$f":"SUM(Sheet2!C393:AF393)","v":1},{"$f":"Sheet1!$B393*65","v":65},null,65]
["هاني سعد ابراهيم محارب",{"$f":"SUM(Sheet2!C394:AF394)","v":32},{"$f":"Sheet1!$B394*65","v":2080},null,2080]
["هاني عبدالحي عيد حسن",{"$f":"SUM(Sheet2!C395:AF395)","v":1},{"$f":"Sheet1!$B395*65","v":65},null,65]
["هديره طه عبدالهادي قنديل",{"$f":"SUM(Sheet2!C396:AF396)","v":21},{"$f":"Sheet1!$B396*65","v":1365},null,1365]
["هشام سعيد صبحي عبدالعزيز",{"$f":"SUM(Sheet2!C397:AF397)","v":26},{"$f":"Sheet1!$B397*65","v":1690},null,1690]
["هشام صابر سليم ادم",{"$f":"SUM(Sheet2!C398:AF398)","v":1},{"$f":"Sheet1!$B398*65","v":65},null,65]
["هشام فتحي خليل المنوفي",{"$f":"SUM(Sheet2!C399:AF399)","v":0},{"$f":"Sheet1!$B399*65","v":0},null,0]
["واءل رجب فنح الله حماده",{"$f":"SUM(Sheet2!C400:AF400)","v":1},{"$f":"Sheet1!$B400*65","v":65},null,65]
["ياسر محمد ابراهيم سيد",{"$f":"SUM(Sheet2!C401:AF401)","v":2},{"$f":"Sheet1!$B401*65","v":130},null,130]
["ياسر محمد محمد عباده",{"$f":"SUM(Sheet2!C402:AF402)","v":43},{"$f":"Sheet1!$B402*65","v":2795},null,2795]
["يحي محمد عبدالكريم الاعرج",{"$f":"SUM(Sheet2!C403:AF403)","v":28},{"$f":"Sheet1!$B403*65","v":1820},null,1820]
["يحيي فتحي محمد عبدالله راشد",{"$f":"SUM(Sheet2!C404:AF404)","v":1},{"$f":"Sheet1!$B404*65","v":65},null,65]
["يوسف احمد السيد",{"$f":"SUM(Sheet2!C405:AF405)","v":5},{"$f":"Sheet1!$B405*65","v":325},null,325]
["يوسف الجمل علي كمال الدين",{"$f":"SUM(Sheet2!C406:AF406)","v":31},{"$f":"Sheet1!$B406*65","v":2015},null,2015]
["يوسف حسين فرحات",{"$f":"SUM(Sheet2!C407:AF407)","v":1},{"$f":"Sheet1!$B407*65","v":65},null,65]
["يوسف شعبان عبدالمنعم",{"$f":"SUM(Sheet2!C408:AF408)","v":4},{"$f":"Sheet1!$B408*65","v":260},null,260]
["يونس الجمل علي كمال",{"$f":"SUM(Sheet2!C409:AF409)","v":15},{"$f":"Sheet1!$B409*65","v":975},null,975]
[null,{"$f":"SUM(Sheet2!C410:AF410)","v":0},{"$f":"Sheet1!$B410*65","v":0},null,0]
[null,{"$f":"SUM(Sheet2!C411:AF411)","v":0},{"$f":"Sheet1!$B411*65","v":0},null,0]
[null,{"$f":"SUM(Sheet2!C412:AF412)","v":0},{"$f":"Sheet1!$B412*65","v":0},null,0]
[null,{"$f":"SUM(Sheet2!C413:AF413)","v":0},{"$f":"Sheet1!$B413*65","v":0},null,0]
[null,{"$f":"SUM(Sheet2!C414:AF414)","v":0},{"$f":"Sheet1!$B414*65","v":0},null,0]
[null,{"$f":"SUM(Sheet2!C415:AF415)","v":0},{"$f":"Sheet1!$B415*65","v":0},null,0]
[null,{"$f":"SUM(Sheet2!C416:AF416)","v":0},{"$f":"Sheet1!$B416*65","v":0},null,0]
[null,{"$f":"SUM(Sheet2!C417:AF417)","v":0},{"$f":"Sheet1!$B417*65","v":0},null,0]
[null,{"$f":"SUM(Sheet2!C418:AF418)","v":0},{"$f":"Sheet1!$B418*65","v":0},null,0]
[null,{"$f":"SUM(Sheet2!C419:AF419)","v":0},{"$f":"Sheet1!$B419*65","v":0},null,0]
[null,{"$f":"SUM(Sheet2!C420:AF420)","v":0},{"$f":"Sheet1!$B420*65","v":0},null,0]
[null,{"$f":"SUM(Sheet2!C421:AF421)","v":0},{"$f":"Sheet1!$B421*65","v":0},null,0]
[null,{"$f":"SUM(Sheet2!C422:AF422)","v":0},{"$f":"Sheet1!$B422*65","v":0},null,0]
[null,{"$f":"SUM(Sheet2!C423:AF423)","v":0},{"$f":"Sheet1!$B423*65","v":0},null,0]
[null,{"$f":"SUM(Sheet2!C424:AF424)","v":0},{"$f":"Sheet1!$B424*65","v":0},null,0]
[null,{"$f":"SUM(Sheet2!C425:AF425)","v":0},{"$f":"Sheet1!$B425*65","v":0},null,0]
[null,{"$f":"SUM(Sheet2!C426:AF426)","v":0},{"$f":"Sheet1!$B426*65","v":0},null,0]
[null,{"$f":"SUM(Sheet2!C427:AF427)","v":0},{"$f":"Sheet1!$B427*65","v":0},null,0]
[null,{"$f":"SUM(Sheet2!C428:AF428)","v":0},{"$f":"Sheet1!$B428*65","v":0},null,0]
[null,{"$f":"SUM(Sheet2!C429:AF429)","v":0},{"$f":"Sheet1!$B429*65","v":0},null,0]
[null,{"$f":"SUM(Sheet2!C430:AF430)","v":0},{"$f":"Sheet1!$B430*65","v":0},null,0]
[null,{"$f":"SUM(Sheet2!C431:AF431)","v":0},{"$f":"Sheet1!$B431*65","v":0},null,0]
[null,{"$f":"SUM(Sheet2!C432:AF432)","v":0},{"$f":"Sheet1!$B432*65","v":0},null,0]
[null,{"$f":"SUM(Sheet2!C433:AF433)","v":0},{"$f":"Sheet1!$B433*65","v":0},null,0]
[null,{"$f":"SUM(Sheet2!C434:AF434)","v":0},{"$f":"Sheet1!$B434*65","v":0},null,0]
[null,{"$f":"SUM(Sheet2!C435:AF435)","v":0},{"$f":"Sheet1!$B435*65","v":0},null,0]
[null,{"$f":"SUM(Sheet2!C436:AF436)","v":0},{"$f":"Sheet1!$B436*65","v":0},null,0]
[null,{"$f":"SUM(Sheet2!C437:AF437)","v":0},{"$f":"Sheet1!$B437*65","v":0},null,0]
[null,{"$f":"SUM(Sheet2!C438:AF438)","v":0},{"$f":"Sheet1!$B438*65","v":0},null,0]
[null,{"$f":"SUM(Sheet2!C439:AF439)","v":0},{"$f":"Sheet1!$B439*65","v":0},null,0]
[null,{"$f":"SUM(Sheet2!C440:AF440)","v":0},{"$f":"Sheet1!$B440*65","v":0},null,0]
[null,{"$f":"SUM(Sheet2!C441:AF441)","v":0},{"$f":"Sheet1!$B441*65","v":0},null,0]
[null,{"$f":"SUM(Sheet2!C442:AF442)","v":0},{"$f":"Sheet1!$B442*65","v":0},null,0]
[null,{"$f":"SUM(Sheet2!C443:AF443)","v":0},{"$f":"Sheet1!$B443*65","v":0},null,0]
[null,{"$f":"SUM(Sheet2!C444:AF444)","v":0},{"$f":"Sheet1!$B444*65","v":0},null,0]
[null,{"$f":"SUM(Sheet2!C445:AF445)","v":0},{"$f":"Sheet1!$B445*65","v":0},null,0]
[null,{"$f":"SUM(Sheet2!C446:AF446)","v":0},{"$f":"Sheet1!$B446*65","v":0},null,0]
[null,{"$f":"SUM(Sheet2!C447:AF447)","v":0},{"$f":"Sheet1!$B447*65","v":0},null,0]
[null,{"$f":"SUM(Sheet2!C448:AF448)","v":0},{"$f":"Sheet1!$B448*65","v":0},null,0]
[null,{"$f":"SUM(Sheet2!C449:AF449)","v":0},{"$f":"Sheet1!$B449*65","v":0},null,0]
[null,{"$f":"SUM(Sheet2!C450:AF450)","v":0},{"$f":"Sheet1!$B450*65","v":0},null,0]
[null,{"$f":"SUM(Sheet2!C451:AF451)","v":0},{"$f":"Sheet1!$B451*65","v":0},null,{"$f":"$C451-$D451","v":0}]
[null,{"$f":"SUM(Sheet2!C452:AF452)","v":0},{"$f":"Sheet1!$B452*65","v":0},null,0]
[null,{"$f":"SUM(Sheet2!C453:AF453)","v":0},{"$f":"Sheet1!$B453*65","v":0},null,0]
[null,{"$f":"SUM(Sheet2!C454:AF454)","v":0},{"$f":"Sheet1!$B454*65","v":0},null,0]
[null,{"$f":"SUM(Sheet2!C455:AF455)","v":0},{"$f":"Sheet1!$B455*65","v":0},null,0]
[null,{"$f":"SUM(Sheet2!C456:AF456)","v":0},{"$f":"Sheet1!$B456*65","v":0},null,0]
[null,{"$f":"SUM(Sheet2!C457:AF457)","v":0},{"$f":"Sheet1!$B457*65","v":0},null,0]
[null,{"$f":"SUM(Sheet2!C458:AF458)","v":0},{"$f":"Sheet1!$B458*65","v":0},null,0]
[null,{"$f":"SUM(Sheet2!C459:AF459)","v":0},{"$f":"Sheet1!$B459*65","v":0},null,0]
[null,{"$f":"SUM(Sheet2!C460:AF460)","v":0},{"$f":"Sheet1!$B460*65","v":0},null,0]
[null,{"$f":"SUM(Sheet2!C461:AF461)","v":0},{"$f":"Sheet1!$B461*65","v":0},null,0]
[null,{"$f":"SUM(Sheet2!C462:AF462)","v":0},{"$f":"Sheet1!$B462*65","v":0},null,0]
[null,{"$f":"SUM(Sheet2!C463:AF463)","v":0},{"$f":"Sheet1!$B463*65","v":0},null,0]
[null,{"$f":"SUM(Sheet2!C464:AF464)","v":0},{"$f":"Sheet1!$B464*65","v":0},null,0]
[null,{"$f":"SUM(Sheet2!C465:AF465)","v":0},{"$f":"Sheet1!$B465*65","v":0},null,0]
[null,{"$f":"SUM(Sheet2!C466:AF466)","v":0},{"$f":"Sheet1!$B466*65","v":0},null,0]
[null,{"$f":"SUM(Sheet2!C467:AF467)","v":0},{"$f":"Sheet1!$B467*65","v":0},null,0]
[null,{"$f":"SUM(Sheet2!C468:AF468)","v":0},{"$f":"Sheet1!$B468*65","v":0},null,0]
[null,{"$f":"SUM(Sheet2!C469:AF469)","v":0},{"$f":"Sheet1!$B469*65","v":0},null,0]
[null,{"$f":"SUM(Sheet2!C470:AF470)","v":0},{"$f":"Sheet1!$B470*65","v":0},null,0]
[null,{"$f":"SUM(Sheet2!C471:AF471)","v":0},{"$f":"Sheet1!$B471*65","v":0},null,0]
[null,{"$f":"SUM(Sheet2!C472:AF472)","v":0},{"$f":"Sheet1!$B472*65","v":0},null,0]
[null,{"$f":"SUM(Sheet2!C473:AF473)","v":0},{"$f":"Sheet1!$B473*65","v":0},null,0]
[null,{"$f":"SUM(Sheet2!C474:AF474)","v":0},{"$f":"Sheet1!$B474*65","v":0},null,0]
[null,{"$f":"SUM(Sheet2!C475:AF475)","v":0},{"$f":"Sheet1!$B475*65","v":0},null,0]
[null,{"$f":"SUM(Sheet2!C476:AF476)","v":0},{"$f":"Sheet1!$B476*65","v":0},null,0]
[null,{"$f":"SUM(Sheet2!C477:AF477)","v":0},{"$f":"Sheet1!$B477*65","v":0},null,0]
[null,{"$f":"SUM(Sheet2!C478:AF478)","v":0},{"$f":"Sheet1!$B478*65","v":0},null,0]
[null,{"$f":"SUM(Sheet2!C479:AF479)","v":0},{"$f":"Sheet1!$B479*65","v":0},null,0]
[null,{"$f":"SUM(Sheet2!C480:AF480)","v":0},{"$f":"Sheet1!$B480*65","v":0},null,0]
[null,{"$f":"SUM(Sheet2!C481:AF481)","v":0},{"$f":"Sheet1!$B481*65","v":0},null,0]
[null,{"$f":"SUM(Sheet2!C482:AF482)","v":0},{"$f":"Sheet1!$B482*65","v":0},null,0]
[null,{"$f":"SUM(Sheet2!C483:AF483)","v":0},{"$f":"Sheet1!$B483*65","v":0},null,0]
[null,{"$f":"SUM(Sheet2!C484:AF484)","v":0},{"$f":"Sheet1!$B484*65","v":0},null,0]
[null,{"$f":"SUM(Sheet2!C485:AF485)","v":0},{"$f":"Sheet1!$B485*65","v":0},null,0]
[null,{"$f":"SUM(Sheet2!C486:AF486)","v":0},{"$f":"Sheet1!$B486*65","v":0},null,0]
[null,{"$f":"SUM(Sheet2!C487:AF487)","v":0},{"$f":"Sheet1!$B487*65","v":0},null,0]
[null,{"$f":"SUM(Sheet2!C488:AF488)","v":0},{"$f":"Sheet1!$B488*65","v":0},null,0]
[null,{"$f":"SUM(Sheet2!C489:AF489)","v":0},{"$f":"Sheet1!$B489*65","v":0},null,0]
[null,{"$f":"SUM(Sheet2!C490:AF490)","v":0},{"$f":"Sheet1!$B490*65","v":0},null,0]
[null,{"$f":"SUM(Sheet2!C491:AF491)","v":0},{"$f":"Sheet1!$B491*65","v":0},null,0]
[null,{"$f":"SUM(Sheet2!C492:AF492)","v":0},{"$f":"Sheet1!$B492*65","v":0},null,0]
[null,{"$f":"SUM(Sheet2!C493:AF493)","v":0},{"$f":"Sheet1!$B493*65","v":0},null,0]
[null,{"$f":"SUM(Sheet2!C494:AF494)","v":0},{"$f":"Sheet1!$B494*65","v":0},null,0]
[null,{"$f":"SUM(Sheet2!C495:AF495)","v":0},{"$f":"Sheet1!$B495*65","v":0},null,0]
[null,{"$f":"SUM(Sheet2!C496:AF496)","v":0},{"$f":"Sheet1!$B496*65","v":0},null,0]
[null,{"$f":"SUM(Sheet2!C497:AF497)","v":0},{"$f":"Sheet1!$B497*65","v":0},null,0]
[null,{"$f":"SUM(Sheet2!C498:AF498)","v":0},{"$f":"Sheet1!$B498*65","v":0},null,0]
[null,{"$f":"SUM(Sheet2!C499:AF499)","v":0},{"$f":"Sheet1!$B499*65","v":0},null,0]
[null,{"$f":"SUM(Sheet2!C500:AF500)","v":0},{"$f":"Sheet1!$B500*65","v":0},null,0]
[null,{"$f":"SUM(Sheet2!C501:AF501)","v":0},{"$f":"Sheet1!$B501*65","v":0},null,0]
[null,{"$f":"SUM(Sheet2!C502:AF502)","v":0},{"$f":"Sheet1!$B502*65","v":0},null,0]
[null,{"$f":"SUM(Sheet2!C503:AF503)","v":0},{"$f":"Sheet1!$B503*65","v":0},null,0]
[null,{"$f":"SUM(Sheet2!C504:AF504)","v":0},{"$f":"Sheet1!$B504*65","v":0},null,0]
[null,{"$f":"SUM(Sheet2!C505:AF505)","v":0},{"$f":"Sheet1!$B505*65","v":0},null,0]
[null,{"$f":"SUM(Sheet2!C506:AF506)","v":0},{"$f":"Sheet1!$B506*65","v":0},null,0]
[null,{"$f":"SUM(Sheet2!C507:AF507)","v":0},{"$f":"Sheet1!$B507*65","v":0},null,0]
[null,{"$f":"SUM(Sheet2!C508:AF508)","v":0},{"$f":"Sheet1!$B508*65","v":0},null,0]
[null,{"$f":"SUM(Sheet2!C509:AF509)","v":0},{"$f":"Sheet1!$B509*65","v":0},null,0]
[null,{"$f":"SUM(Sheet2!C510:AF510)","v":0},{"$f":"Sheet1!$B510*65","v":0},null,0]
[null,{"$f":"SUM(Sheet2!C511:AF511)","v":0},{"$f":"Sheet1!$B511*65","v":0},null,0]
[null,{"$f":"SUM(Sheet2!C512:AF512)","v":0},{"$f":"Sheet1!$B512*65","v":0},null,0]
[null,{"$f":"SUM(Sheet2!C513:AF513)","v":0},{"$f":"Sheet1!$B513*65","v":0},null,0]
[null,{"$f":"SUM(Sheet2!C514:AF514)","v":0},{"$f":"Sheet1!$B514*65","v":0},null,0]
[null,{"$f":"SUM(Sheet2!C515:AF515)","v":0},{"$f":"Sheet1!$B515*65","v":0},null,{"$f":"$C515-$D515","v":0}]
[null,{"$f":"SUM(Sheet2!C516:AF516)","v":0},{"$f":"Sheet1!$B516*65","v":0},null,0]
[null,{"$f":"SUM(Sheet2!C517:AF517)","v":0},{"$f":"Sheet1!$B517*65","v":0},null,0]
[null,{"$f":"SUM(Sheet2!C518:AF518)","v":0},{"$f":"Sheet1!$B518*65","v":0},null,0]
[null,{"$f":"SUM(Sheet2!C519:AF519)","v":0},{"$f":"Sheet1!$B519*65","v":0},null,0]
[null,{"$f":"SUM(Sheet2!C520:AF520)","v":0},{"$f":"Sheet1!$B520*65","v":0},null,0]
[null,{"$f":"SUM(Sheet2!C521:AF521)","v":0},{"$f":"Sheet1!$B521*65","v":0},null,0]
[null,{"$f":"SUM(Sheet2!C522:AF522)","v":0},{"$f":"Sheet1!$B522*65","v":0},null,0]
[null,{"$f":"SUM(Sheet2!C523:AF523)","v":0},{"$f":"Sheet1!$B523*65","v":0},null,0]
[null,{"$f":"SUM(Sheet2!C524:AF524)","v":0},{"$f":"Sheet1!$B524*65","v":0},null,0]
[null,{"$f":"SUM(Sheet2!C525:AF525)","v":0},{"$f":"Sheet1!$B525*65","v":0},null,0]
[null,{"$f":"SUM(Sheet2!C526:AF526)","v":0},{"$f":"Sheet1!$B526*65","v":0},null,0]
[null,{"$f":"SUM(Sheet2!C527:AF527)","v":0},{"$f":"Sheet1!$B527*65","v":0},null,0]
[null,{"$f":"SUM(Sheet2!C528:AF528)","v":0},{"$f":"Sheet1!$B528*65","v":0},null,0]
[null,{"$f":"SUM(Sheet2!C529:AF529)","v":0},{"$f":"Sheet1!$B529*65","v":0},null,0]
[null,{"$f":"SUM(Sheet2!C530:AF530)","v":0},{"$f":"Sheet1!$B530*65","v":0},null,0]
[null,{"$f":"SUM(Sheet2!C531:AF531)","v":0},{"$f":"Sheet1!$B531*65","v":0},null,0]
[null,{"$f":"SUM(Sheet2!C532:AF532)","v":0},{"$f":"Sheet1!$B532*65","v":0},null,0]
[null,{"$f":"SUM(Sheet2!C533:AF533)","v":0},{"$f":"Sheet1!$B533*65","v":0},null,0]
[null,{"$f":"SUM(Sheet2!C534:AF534)","v":0},{"$f":"Sheet1!$B534*65","v":0},null,0]
[null,{"$f":"SUM(Sheet2!C535:AF535)","v":0},{"$f":"Sheet1!$B535*65","v":0},null,0]
[null,{"$f":"SUM(Sheet2!C536:AF536)","v":0},{"$f":"Sheet1!$B536*65","v":0},null,0]
[null,{"$f":"SUM(Sheet2!C537:AF537)","v":0},{"$f":"Sheet1!$B537*65","v":0},null,0]
[null,{"$f":"SUM(Sheet2!C538:AF538)","v":0},{"$f":"Sheet1!$B538*65","v":0},null,0]
[null,{"$f":"SUM(Sheet2!C539:AF539)","v":0},{"$f":"Sheet1!$B539*65","v":0},null,0]
[null,{"$f":"SUM(Sheet2!C540:AF540)","v":0},{"$f":"Sheet1!$B540*65","v":0},null,0]
[null,{"$f":"SUM(Sheet2!C541:AF541)","v":0},{"$f":"Sheet1!$B541*65","v":0},null,0]
[null,{"$f":"SUM(Sheet2!C542:AF542)","v":0},{"$f":"Sheet1!$B542*65","v":0},null,0]
[null,{"$f":"SUM(Sheet2!C543:AF543)","v":0},{"$f":"Sheet1!$B543*65","v":0},null,0]
[null,{"$f":"SUM(Sheet2!C544:AF544)","v":0},{"$f":"Sheet1!$B544*65","v":0},null,0]
[null,{"$f":"SUM(Sheet2!C545:AF545)","v":0},{"$f":"Sheet1!$B545*65","v":0},null,0]
[null,{"$f":"SUM(Sheet2!C546:AF546)","v":0},{"$f":"Sheet1!$B546*65","v":0},null,0]
[null,{"$f":"SUM(Sheet2!C547:AF547)","v":0},{"$f":"Sheet1!$B547*65","v":0},null,0]
[null,{"$f":"SUM(Sheet2!C548:AF548)","v":0},{"$f":"Sheet1!$B548*65","v":0},null,0]
[null,{"$f":"SUM(Sheet2!C549:AF549)","v":0},{"$f":"Sheet1!$B549*65","v":0},null,0]
[null,{"$f":"SUM(Sheet2!C550:AF550)","v":0},{"$f":"Sheet1!$B550*65","v":0},null,0]
[null,{"$f":"SUM(Sheet2!C551:AF551)","v":0},{"$f":"Sheet1!$B551*65","v":0},null,0]
[null,{"$f":"SUM(Sheet2!C552:AF552)","v":0},{"$f":"Sheet1!$B552*65","v":0},null,0]
[null,{"$f":"SUM(Sheet2!C553:AF553)","v":0},{"$f":"Sheet1!$B553*65","v":0},null,0]
[null,{"$f":"SUM(Sheet2!C554:AF554)","v":0},{"$f":"Sheet1!$B554*65","v":0},null,0]
[null,{"$f":"SUM(Sheet2!C555:AF555)","v":0},{"$f":"Sheet1!$B555*65","v":0},null,0]
[null,{"$f":"SUM(Sheet2!C556:AF556)","v":0},{"$f":"Sheet1!$B556*65","v":0},null,0]
[null,{"$f":"SUM(Sheet2!C557:AF557)","v":0},{"$f":"Sheet1!$B557*65","v":0},null,0]
[null,{"$f":"SUM(Sheet2!C558:AF558)","v":0},{"$f":"Sheet1!$B558*65","v":0},null,0]
[null,{"$f":"SUM(Sheet2!C559:AF559)","v":0},{"$f":"Sheet1!$B559*65","v":0},null,0]
[null,{"$f":"SUM(Sheet2!C560:AF560)","v":0},{"$f":"Sheet1!$B560*65","v":0},null,0]
[null,{"$f":"SUM(Sheet2!C561:AF561)","v":0},{"$f":"Sheet1!$B561*65","v":0},null,0]
[null,{"$f":"SUM(Sheet2!C562:AF562)","v":0},{"$f":"Sheet1!$B562*65","v":0},null,0]
[null,{"$f":"SUM(Sheet2!C563:AF563)","v":0},{"$f":"Sheet1!$B563*65","v":0},null,0]
[null,{"$f":"SUM(Sheet2!C564:AF564)","v":0},{"$f":"Sheet1!$B564*65","v":0},null,0]
[null,{"$f":"SUM(Sheet2!C565:AF565)","v":0},{"$f":"Sheet1!$B565*65","v":0},null,0]
[null,{"$f":"SUM(Sheet2!C566:AF566)","v":0},{"$f":"Sheet1!$B566*65","v":0},null,0]
[null,{"$f":"SUM(Sheet2!C567:AF567)","v":0},{"$f":"Sheet1!$B567*65","v":0},null,0]
[null,{"$f":"SUM(Sheet2!C568:AF568)","v":0},{"$f":"Sheet1!$B568*65","v":0},null,0]
[null,{"$f":"SUM(Sheet2!C569:AF569)","v":0},{"$f":"Sheet1!$B569*65","v":0},null,0]
[null,{"$f":"SUM(Sheet2!C570:AF570)","v":0},{"$f":"Sheet1!$B570*65","v":0},null,0]
[null,{"$f":"SUM(Sheet2!C571:AF571)","v":0},{"$f":"Sheet1!$B571*65","v":0},null,0]
[null,{"$f":"SUM(Sheet2!C572:AF572)","v":0},{"$f":"Sheet1!$B572*65","v":0},null,0]
[null,{"$f":"SUM(Sheet2!C573:AF573)","v":0},{"$f":"Sheet1!$B573*65","v":0},null,0]
[null,{"$f":"SUM(Sheet2!C574:AF574)","v":0},{"$f":"Sheet1!$B574*65","v":0},null,0]
[null,{"$f":"SUM(Sheet2!C575:AF575)","v":0},{"$f":"Sheet1!$B575*65","v":0},null,0]
[null,{"$f":"SUM(Sheet2!C576:AF576)","v":0},{"$f":"Sheet1!$B576*65","v":0},null,0]
[null,{"$f":"SUM(Sheet2!C577:AF577)","v":0},{"$f":"Sheet1!$B577*65","v":0},null,0]
[null,{"$f":"SUM(Sheet2!C578:AF578)","v":0},{"$f":"Sheet1!$B578*65","v":0},null,0]
[null,{"$f":"SUM(Sheet2!C579:AF579)","v":0},{"$f":"Sheet1!$B579*65","v":0},null,{"$f":"$C579-$D579","v":0}]
[null,{"$f":"SUM(Sheet2!C580:AF580)","v":0},{"$f":"Sheet1!$B580*65","v":0},null,0]
[null,{"$f":"SUM(Sheet2!C581:AF581)","v":0},{"$f":"Sheet1!$B581*65","v":0},null,0]
[null,{"$f":"SUM(Sheet2!C582:AF582)","v":0},{"$f":"Sheet1!$B582*65","v":0},null,0]
[null,{"$f":"SUM(Sheet2!C583:AF583)","v":0},{"$f":"Sheet1!$B583*65","v":0},null,0]
[null,{"$f":"SUM(Sheet2!C584:AF584)","v":0},{"$f":"Sheet1!$B584*65","v":0},null,0]
[null,{"$f":"SUM(Sheet2!C585:AF585)","v":0},{"$f":"Sheet1!$B585*65","v":0},null,0]
[null,{"$f":"SUM(Sheet2!C586:AF586)","v":0},{"$f":"Sheet1!$B586*65","v":0},null,0]
[null,{"$f":"SUM(Sheet2!C587:AF587)","v":0},{"$f":"Sheet1!$B587*65","v":0},null,0]
[null,{"$f":"SUM(Sheet2!C588:AF588)","v":0},{"$f":"Sheet1!$B588*65","v":0},null,0]
[null,{"$f":"SUM(Sheet2!C589:AF589)","v":0},{"$f":"Sheet1!$B589*65","v":0},null,0]
[null,{"$f":"SUM(Sheet2!C590:AF590)","v":0},{"$f":"Sheet1!$B590*65","v":0},null,0]
[null,{"$f":"SUM(Sheet2!C591:AF591)","v":0},{"$f":"Sheet1!$B591*65","v":0},null,0]
[null,{"$f":"SUM(Sheet2!C592:AF592)","v":0},{"$f":"Sheet1!$B592*65","v":0},null,0]
[null,{"$f":"SUM(Sheet2!C593:AF593)","v":0},{"$f":"Sheet1!$B593*65","v":0},null,0]
[null,{"$f":"SUM(Sheet2!C594:AF594)","v":0},{"$f":"Sheet1!$B594*65","v":0},null,0]
[null,{"$f":"SUM(Sheet2!C595:AF595)","v":0},{"$f":"Sheet1!$B595*65","v":0},null,0]
[null,{"$f":"SUM(Sheet2!C596:AF596)","v":0},{"$f":"Sheet1!$B596*65","v":0},null,0]
[null,{"$f":"SUM(Sheet2!C597:AF597)","v":0},{"$f":"Sheet1!$B597*65","v":0},null,0]
[null,{"$f":"SUM(Sheet2!C598:AF598)","v":0},{"$f":"Sheet1!$B598*65","v":0},null,0]
[null,{"$f":"SUM(Sheet2!C599:AF599)","v":0},{"$f":"Sheet1!$B599*65","v":0},null,0]
[null,{"$f":"SUM(Sheet2!C600:AF600)","v":0},{"$f":"Sheet1!$B600*65","v":0},null,0]
[null,{"$f":"SUM(Sheet2!C601:AF601)","v":0},{"$f":"Sheet1!$B601*65","v":0},null,0]
[null,{"$f":"SUM(Sheet2!C602:AF602)","v":0},{"$f":"Sheet1!$B602*65","v":0},null,0]
[null,{"$f":"SUM(Sheet2!C603:AF603)","v":0},{"$f":"Sheet1!$B603*65","v":0},null,0]
[null,{"$f":"SUM(Sheet2!C604:AF604)","v":0},{"$f":"Sheet1!$B604*65","v":0},null,0]
[null,{"$f":"SUM(Sheet2!C605:AF605)","v":0},{"$f":"Sheet1!$B605*65","v":0},null,0]
[null,{"$f":"SUM(Sheet2!C606:AF606)","v":0},{"$f":"Sheet1!$B606*65","v":0},null,0]
[null,{"$f":"SUM(Sheet2!C607:AF607)","v":0},{"$f":"Sheet1!$B607*65","v":0},null,0]
[null,{"$f":"SUM(Sheet2!C608:AF608)","v":0},{"$f":"Sheet1!$B608*65","v":0},null,0]
[null,{"$f":"SUM(Sheet2!C609:AF609)","v":0},{"$f":"Sheet1!$B609*65","v":0},null,0]
[null,{"$f":"SUM(Sheet2!C610:AF610)","v":0},{"$f":"Sheet1!$B610*65","v":0},null,0]
[null,{"$f":"SUM(Sheet2!C611:AF611)","v":0},{"$f":"Sheet1!$B611*65","v":0},null,0]
[null,{"$f":"SUM(Sheet2!C612:AF612)","v":0},{"$f":"Sheet1!$B612*65","v":0},null,0]
[null,{"$f":"SUM(Sheet2!C613:AF613)","v":0},{"$f":"Sheet1!$B613*65","v":0},null,0]
[null,{"$f":"SUM(Sheet2!C614:AF614)","v":0},{"$f":"Sheet1!$B614*65","v":0},null,0]
[null,{"$f":"SUM(Sheet2!C615:AF615)","v":0},{"$f":"Sheet1!$B615*65","v":0},null,0]
[null,{"$f":"SUM(Sheet2!C616:AF616)","v":0},{"$f":"Sheet1!$B616*65","v":0},null,0]
[null,{"$f":"SUM(Sheet2!C617:AF617)","v":0},{"$f":"Sheet1!$B617*65","v":0},null,0]
[null,{"$f":"SUM(Sheet2!C618:AF618)","v":0},{"$f":"Sheet1!$B618*65","v":0},null,0]
[null,{"$f":"SUM(Sheet2!C619:AF619)","v":0},{"$f":"Sheet1!$B619*65","v":0},null,0]
[null,{"$f":"SUM(Sheet2!C620:AF620)","v":0},{"$f":"Sheet1!$B620*65","v":0},null,0]
[null,{"$f":"SUM(Sheet2!C621:AF621)","v":0},{"$f":"Sheet1!$B621*65","v":0},null,0]
[null,{"$f":"SUM(Sheet2!C622:AF622)","v":0},{"$f":"Sheet1!$B622*65","v":0},null,0]
[null,{"$f":"SUM(Sheet2!C623:AF623)","v":0},{"$f":"Sheet1!$B623*65","v":0},null,0]
[null,{"$f":"SUM(Sheet2!C624:AF624)","v":0},{"$f":"Sheet1!$B624*65","v":0},null,0]
[null,{"$f":"SUM(Sheet2!C625:AF625)","v":0},{"$f":"Sheet1!$B625*65","v":0},null,0]
[null,{"$f":"SUM(Sheet2!C626:AF626)","v":0},{"$f":"Sheet1!$B626*65","v":0},null,0]
[null,{"$f":"SUM(Sheet2!C627:AF627)","v":0},{"$f":"Sheet1!$B627*65","v":0},null,0]
[null,{"$f":"SUM(Sheet2!C628:AF628)","v":0},{"$f":"Sheet1!$B628*65","v":0},null,0]
[null,{"$f":"SUM(Sheet2!C629:AF629)","v":0},{"$f":"Sheet1!$B629*65","v":0},null,0]
[null,{"$f":"SUM(Sheet2!C630:AF630)","v":0},{"$f":"Sheet1!$B630*65","v":0},null,0]
[null,{"$f":"SUM(Sheet2!C631:AF631)","v":0},{"$f":"Sheet1!$B631*65","v":0},null,0]
[null,{"$f":"SUM(Sheet2!C632:AF632)","v":0},{"$f":"Sheet1!$B632*65","v":0},null,0]
[null,{"$f":"SUM(Sheet2!C633:AF633)","v":0},{"$f":"Sheet1!$B633*65","v":0},null,0]
[null,{"$f":"SUM(Sheet2!C634:AF634)","v":0},{"$f":"Sheet1!$B634*65","v":0},null,0]
[null,{"$f":"SUM(Sheet2!C635:AF635)","v":0},{"$f":"Sheet1!$B635*65","v":0},null,0]
[null,{"$f":"SUM(Sheet2!C636:AF636)","v":0},{"$f":"Sheet1!$B636*65","v":0},null,0]
[null,{"$f":"SUM(Sheet2!C637:AF637)","v":0},{"$f":"Sheet1!$B637*65","v":0},null,0]
[null,{"$f":"SUM(Sheet2!C638:AF638)","v":0},{"$f":"Sheet1!$B638*65","v":0},null,0]
[null,{"$f":"SUM(Sheet2!C639:AF639)","v":0},{"$f":"Sheet1!$B639*65","v":0},null,0]
[null,{"$f":"SUM(Sheet2!C640:AF640)","v":0},{"$f":"Sheet1!$B640*65","v":0},null,0]
[null,{"$f":"SUM(Sheet2!C641:AF641)","v":0},{"$f":"Sheet1!$B641*65","v":0},null,0]
[null,{"$f":"SUM(Sheet2!C642:AF642)","v":0},{"$f":"Sheet1!$B642*65","v":0},null,0]
[null,{"$f":"SUM(Sheet2!C643:AF643)","v":0},{"$f":"Sheet1!$B643*65","v":0},null,{"$f":"$C643-$D643","v":0}]
[null,{"$f":"SUM(Sheet2!C644:AF644)","v":0},{"$f":"Sheet1!$B644*65","v":0},null,0]
[null,{"$f":"SUM(Sheet2!C645:AF645)","v":0},{"$f":"Sheet1!$B645*65","v":0},null,0]
[null,{"$f":"SUM(Sheet2!C646:AF646)","v":0},{"$f":"Sheet1!$B646*65","v":0},null,0]
[null,{"$f":"SUM(Sheet2!C647:AF647)","v":0},{"$f":"Sheet1!$B647*65","v":0},null,0]
[null,{"$f":"SUM(Sheet2!C648:AF648)","v":0},{"$f":"Sheet1!$B648*65","v":0},null,0]
[null,{"$f":"SUM(Sheet2!C649:AF649)","v":0},{"$f":"Sheet1!$B649*65","v":0},null,0]
[null,{"$f":"SUM(Sheet2!C650:AF650)","v":0},{"$f":"Sheet1!$B650*65","v":0},null,0]
[null,{"$f":"SUM(Sheet2!C651:AF651)","v":0},{"$f":"Sheet1!$B651*65","v":0},null,0]
[null,{"$f":"SUM(Sheet2!C652:AF652)","v":0},{"$f":"Sheet1!$B652*65","v":0},null,0]
[null,{"$f":"SUM(Sheet2!C653:AF653)","v":0},{"$f":"Sheet1!$B653*65","v":0},null,0]
[null,{"$f":"SUM(Sheet2!C654:AF654)","v":0},{"$f":"Sheet1!$B654*65","v":0},null,0]
[null,{"$f":"SUM(Sheet2!C655:AF655)","v":0},{"$f":"Sheet1!$B655*65","v":0},null,0]
[null,{"$f":"SUM(Sheet2!C656:AF656)","v":0},{"$f":"Sheet1!$B656*65","v":0},null,0]
[null,{"$f":"SUM(Sheet2!C657:AF657)","v":0},{"$f":"Sheet1!$B657*65","v":0},null,0]
[null,{"$f":"SUM(Sheet2!C658:AF658)","v":0},{"$f":"Sheet1!$B658*65","v":0},null,0]
[null,{"$f":"SUM(Sheet2!C659:AF659)","v":0},{"$f":"Sheet1!$B659*65","v":0},null,0]
[null,{"$f":"SUM(Sheet2!C660:AF660)","v":0},{"$f":"Sheet1!$B660*65","v":0},null,0]
[null,{"$f":"SUM(Sheet2!C661:AF661)","v":0},{"$f":"Sheet1!$B661*65","v":0},null,0]
[null,{"$f":"SUM(Sheet2!C662:AF662)","v":0},{"$f":"Sheet1!$B662*65","v":0},null,0]
[null,{"$f":"SUM(Sheet2!C663:AF663)","v":0},{"$f":"Sheet1!$B663*65","v":0},null,0]
[null,{"$f":"SUM(Sheet2!C664:AF664)","v":0},{"$f":"Sheet1!$B664*65","v":0},null,0]
[null,{"$f":"SUM(Sheet2!C665:AF665)","v":0},{"$f":"Sheet1!$B665*65","v":0},null,0]
[null,{"$f":"SUM(Sheet2!C666:AF666)","v":0},{"$f":"Sheet1!$B666*65","v":0},null,0]
[null,{"$f":"SUM(Sheet2!C667:AF667)","v":0},{"$f":"Sheet1!$B667*65","v":0},null,0]
[null,{"$f":"SUM(Sheet2!C668:AF668)","v":0},{"$f":"Sheet1!$B668*65","v":0},null,0]
[null,{"$f":"SUM(Sheet2!C669:AF669)","v":0},{"$f":"Sheet1!$B669*65","v":0},null,0]
[null,{"$f":"SUM(Sheet2!C670:AF670)","v":0},{"$f":"Sheet1!$B670*65","v":0},null,0]
[null,{"$f":"SUM(Sheet2!C671:AF671)","v":0},{"$f":"Sheet1!$B671*65","v":0},null,0]
[null,{"$f":"SUM(Sheet2!C672:AF672)","v":0},{"$f":"Sheet1!$B672*65","v":0},null,0]
[null,{"$f":"SUM(Sheet2!C673:AF673)","v":0},{"$f":"Sheet1!$B673*65","v":0},null,0]
[null,{"$f":"SUM(Sheet2!C674:AF674)","v":0},{"$f":"Sheet1!$B674*65","v":0},null,0]
[null,{"$f":"SUM(Sheet2!C675:AF675)","v":0},{"$f":"Sheet1!$B675*65","v":0},null,0]
[null,{"$f":"SUM(Sheet2!C676:AF676)","v":0},{"$f":"Sheet1!$B676*65","v":0},null,0]
[null,{"$f":"SUM(Sheet2!C677:AF677)","v":0},{"$f":"Sheet1!$B677*65","v":0},null,0]
[null,{"$f":"SUM(Sheet2!C678:AF678)","v":0},{"$f":"Sheet1!$B678*65","v":0},null,0]
[null,{"$f":"SUM(Sheet2!C679:AF679)","v":0},{"$f":"Sheet1!$B679*65","v":0},null,0]
[null,{"$f":"SUM(Sheet2!C680:AF680)","v":0},{"$f":"Sheet1!$B680*65","v":0},null,0]
[null,{"$f":"SUM(Sheet2!C681:AF681)","v":0},{"$f":"Sheet1!$B681*65","v":0},null,0]
[null,{"$f":"SUM(Sheet2!C682:AF682)","v":0},{"$f":"Sheet1!$B682*65","v":0},null,0]
[null,{"$f":"SUM(Sheet2!C683:AF683)","v":0},{"$f":"Sheet1!$B683*65","v":0},null,0]
[null,{"$f":"SUM(Sheet2!C684:AF684)","v":0},{"$f":"Sheet1!$B684*65","v":0},null,0]
[null,{"$f":"SUM(Sheet2!C685:AF685)","v":0},{"$f":"Sheet1!$B685*65","v":0},null,0]
[null,{"$f":"SUM(Sheet2!C686:AF686)","v":0},{"$f":"Sheet1!$B686*65","v":0},null,0]
[null,{"$f":"SUM(Sheet2!C687:AF687)","v":0},{"$f":"Sheet1!$B687*65","v":0},null,0]
[null,{"$f":"SUM(Sheet2!C688:AF688)","v":0},{"$f":"Sheet1!$B688*65","v":0},null,0]
[null,{"$f":"SUM(Sheet2!C689:AF689)","v":0},{"$f":"Sheet1!$B689*65","v":0},null,0]
[null,{"$f":"SUM(Sheet2!C690:AF690)","v":0},{"$f":"Sheet1!$B690*65","v":0},null,0]
[null,{"$f":"SUM(Sheet2!C691:AF691)","v":0},{"$f":"Sheet1!$B691*65","v":0},null,0]
[null,{"$f":"SUM(Sheet2!C692:AF692)","v":0},{"$f":"Sheet1!$B692*65","v":0},null,0]
[null,{"$f":"SUM(Sheet2!C693:AF693)","v":0},{"$f":"Sheet1!$B693*65","v":0},null,0]
[null,{"$f":"SUM(Sheet2!C694:AF694)","v":0},{"$f":"Sheet1!$B694*65","v":0},null,0]
[null,{"$f":"SUM(Sheet2!C695:AF695)","v":0},{"$f":"Sheet1!$B695*65","v":0},null,0]
[null,{"$f":"SUM(Sheet2!C696:AF696)","v":0},{"$f":"Sheet1!$B696*65","v":0},null,0]
[null,{"$f":"SUM(Sheet2!C697:AF697)","v":0},{"$f":"Sheet1!$B697*65","v":0},null,0]
[null,{"$f":"SUM(Sheet2!C698:AF698)","v":0},{"$f":"Sheet1!$B698*65","v":0},null,0]
[null,{"$f":"SUM(Sheet2!C699:AF699)","v":0},{"$f":"Sheet1!$B699*65","v":0},null,0]
[null,{"$f":"SUM(Sheet2!C700:AF700)","v":0},{"$f":"Sheet1!$B700*65","v":0},null,0]
[null,{"$f":"SUM(Sheet2!C701:AF701)","v":0},{"$f":"Sheet1!$B701*65","v":0},null,0]
[null,{"$f":"SUM(Sheet2!C702:AF702)","v":0},{"$f":"Sheet1!$B702*65","v":0},null,0]
[null,{"$f":"SUM(Sheet2!C703:AF703)","v":0},{"$f":"Sheet1!$B703*65","v":0},null,0]
[null,{"$f":"SUM(Sheet2!C704:AF704)","v":0},{"$f":"Sheet1!$B704*65","v":0},null,0]
[null,{"$f":"SUM(Sheet2!C705:AF705)","v":0},{"$f":"Sheet1!$B705*65","v":0},null,0]
[null,{"$f":"SUM(Sheet2!C706:AF706)","v":0},{"$f":"Sheet1!$B706*65","v":0},null,0]
[null,{"$f":"SUM(Sheet2!C707:AF707)","v":0},{"$f":"Sheet1!$B707*65","v":0},null,{"$f":"$C707-$D707","v":0}]
[null,{"$f":"SUM(Sheet2!C708:AF708)","v":0},{"$f":"Sheet1!$B708*65","v":0},null,0]
[null,{"$f":"SUM(Sheet2!C709:AF709)","v":0},{"$f":"Sheet1!$B709*65","v":0},null,0]
[null,{"$f":"SUM(Sheet2!C710:AF710)","v":0},{"$f":"Sheet1!$B710*65","v":0},null,0]
[null,{"$f":"SUM(Sheet2!C711:AF711)","v":0},{"$f":"Sheet1!$B711*65","v":0},null,0]
[null,{"$f":"SUM(Sheet2!C712:AF712)","v":0},{"$f":"Sheet1!$B712*65","v":0},null,0]
[null,{"$f":"SUM(Sheet2!C713:AF713)","v":0},{"$f":"Sheet1!$B713*65","v":0},null,0]
[null,{"$f":"SUM(Sheet2!C714:AF714)","v":0},{"$f":"Sheet1!$B714*65","v":0},null,0]
[null,{"$f":"SUM(Sheet2!C715:AF715)","v":0},{"$f":"Sheet1!$B715*65","v":0},null,0]
[null,{"$f":"SUM(Sheet2!C716:AF716)","v":0},{"$f":"Sheet1!$B716*65","v":0},null,0]
[null,{"$f":"SUM(Sheet2!C717:AF717)","v":0},{"$f":"Sheet1!$B717*65","v":0},null,0]
[null,{"$f":"SUM(Sheet2!C718:AF718)","v":0},{"$f":"Sheet1!$B718*65","v":0},null,0]
[null,{"$f":"SUM(Sheet2!C719:AF719)","v":0},{"$f":"Sheet1!$B719*65","v":0},null,0]
[null,{"$f":"SUM(Sheet2!C720:AF720)","v":0},{"$f":"Sheet1!$B720*65","v":0},null,0]
[null,{"$f":"SUM(Sheet2!C721:AF721)","v":0},{"$f":"Sheet1!$B721*65","v":0},null,0]
[null,{"$f":"SUM(Sheet2!C722:AF722)","v":0},{"$f":"Sheet1!$B722*65","v":0},null,0]
[null,{"$f":"SUM(Sheet2!C723:AF723)","v":0},{"$f":"Sheet1!$B723*65","v":0},null,0]
[null,{"$f":"SUM(Sheet2!C724:AF724)","v":0},{"$f":"Sheet1!$B724*65","v":0},null,0]
[null,{"$f":"SUM(Sheet2!C725:AF725)","v":0},{"$f":"Sheet1!$B725*65","v":0},null,0]
[null,{"$f":"SUM(Sheet2!C726:AF726)","v":0},{"$f":"Sheet1!$B726*65","v":0},null,0]
[null,{"$f":"SUM(Sheet2!C727:AF727)","v":0},{"$f":"Sheet1!$B727*65","v":0},null,0]
[null,{"$f":"SUM(Sheet2!C728:AF728)","v":0},{"$f":"Sheet1!$B728*65","v":0},null,0]
[null,{"$f":"SUM(Sheet2!C729:AF729)","v":0},{"$f":"Sheet1!$B729*65","v":0},null,0]
[null,{"$f":"SUM(Sheet2!C730:AF730)","v":0},{"$f":"Sheet1!$B730*65","v":0},null,0]
[null,{"$f":"SUM(Sheet2!C731:AF731)","v":0},{"$f":"Sheet1!$B731*65","v":0},null,0]
[null,{"$f":"SUM(Sheet2!C732:AF732)","v":0},{"$f":"Sheet1!$B732*65","v":0},null,0]
[null,{"$f":"SUM(Sheet2!C733:AF733)","v":0},{"$f":"Sheet1!$B733*65","v":0},null,0]
[null,{"$f":"SUM(Sheet2!C734:AF734)","v":0},{"$f":"Sheet1!$B734*65","v":0},null,0]
[null,{"$f":"SUM(Sheet2!C735:AF735)","v":0},{"$f":"Sheet1!$B735*65","v":0},null,0]
[null,{"$f":"SUM(Sheet2!C736:AF736)","v":0},{"$f":"Sheet1!$B736*65","v":0},null,0]
[null,{"$f":"SUM(Sheet2!C737:AF737)","v":0},{"$f":"Sheet1!$B737*65","v":0},null,0]
[null,{"$f":"SUM(Sheet2!C738:AF738)","v":0},{"$f":"Sheet1!$B738*65","v":0},null,0]
[null,{"$f":"SUM(Sheet2!C739:AF739)","v":0},{"$f":"Sheet1!$B739*65","v":0},null,0]
[null,{"$f":"SUM(Sheet2!C740:AF740)","v":0},{"$f":"Sheet1!$B740*65","v":0},null,0]
[null,{"$f":"SUM(Sheet2!C741:AF741)","v":0},{"$f":"Sheet1!$B741*65","v":0},null,0]
[null,{"$f":"SUM(Sheet2!C742:AF742)","v":0},{"$f":"Sheet1!$B742*65","v":0},null,0]
[null,{"$f":"SUM(Sheet2!C743:AF743)","v":0},{"$f":"Sheet1!$B743*65","v":0},null,0]
[null,{"$f":"SUM(Sheet2!C744:AF744)","v":0},{"$f":"Sheet1!$B744*65","v":0},null,0]
[null,{"$f":"SUM(Sheet2!C745:AF745)","v":0},{"$f":"Sheet1!$B745*65","v":0},null,0]
[null,{"$f":"SUM(Sheet2!C746:AF746)","v":0},{"$f":"Sheet1!$B746*65","v":0},null,0]
[null,{"$f":"SUM(Sheet2!C747:AF747)","v":0},{"$f":"Sheet1!$B747*65","v":0},null,0]
[null,{"$f":"SUM(Sheet2!C748:AF748)","v":0},{"$f":"Sheet1!$B748*65","v":0},null,0]
[null,{"$f":"SUM(Sheet2!C749:AF749)","v":0},{"$f":"Sheet1!$B749*65","v":0},null,0]
[null,{"$f":"SUM(Sheet2!C750:AF750)","v":0},{"$f":"Sheet1!$B750*65","v":0},null,0]
[null,{"$f":"SUM(Sheet2!C751:AF751)","v":0},{"$f":"Sheet1!$B751*65","v":0},null,0]
[null,{"$f":"SUM(Sheet2!C752:AF752)","v":0},{"$f":"Sheet1!$B752*65","v":0},null,0]
[null,{"$f":"SUM(Sheet2!C753:AF753)","v":0},{"$f":"Sheet1!$B753*65","v":0},null,0]
[null,{"$f":"SUM(Sheet2!C754:AF754)","v":0},{"$f":"Sheet1!$B754*65","v":0},null,0]
[null,{"$f":"SUM(Sheet2!C755:AF755)","v":0},{"$f":"Sheet1!$B755*65","v":0},null,0]
[null,{"$f":"SUM(Sheet2!C756:AF756)","v":0},{"$f":"Sheet1!$B756*65","v":0},null,0]
[null,{"$f":"SUM(Sheet2!C757:AF757)","v":0},{"$f":"Sheet1!$B757*65","v":0},null,0]
[null,{"$f":"SUM(Sheet2!C758:AF758)","v":0},{"$f":"Sheet1!$B758*65","v":0},null,0]
[null,{"$f":"SUM(Sheet2!C759:AF759)","v":0},{"$f":"Sheet1!$B759*65","v":0},null,0]
[null,{"$f":"SUM(Sheet2!C760:AF760)","v":0},{"$f":"Sheet1!$B760*65","v":0},null,0]
[null,{"$f":"SUM(Sheet2!C761:AF761)","v":0},{"$f":"Sheet1!$B761*65","v":0},null,0]
[null,{"$f":"SUM(Sheet2!C762:AF762)","v":0},{"$f":"Sheet1!$B762*65","v":0},null,0]
[null,{"$f":"SUM(Sheet2!C763:AF763)","v":0},{"$f":"Sheet1!$B763*65","v":0},null,0]
[null,{"$f":"SUM(Sheet2!C764:AF764)","v":0},{"$f":"Sheet1!$B764*65","v":0},null,0]
[null,{"$f":"SUM(Sheet2!C765:AF765)","v":0},{"$f":"Sheet1!$B765*65","v":0},null,0]
[null,{"$f":"SUM(Sheet2!C766:AF766)","v":0},{"$f":"Sheet1!$B766*65","v":0},null,0]
[null,{"$f":"SUM(Sheet2!C767:AF767)","v":0},{"$f":"Sheet1!$B767*65","v":0},null,0]
[null,{"$f":"SUM(Sheet2!C768:AF768)","v":0},{"$f":"Sheet1!$B768*65","v":0},null,0]
[null,{"$f":"SUM(Sheet2!C769:AF769)","v":0},{"$f":"Sheet1!$B769*65","v":0},null,0]
[null,{"$f":"SUM(Sheet2!C770:AF770)","v":0},{"$f":"Sheet1!$B770*65","v":0},null,0]
[null,{"$f":"SUM(Sheet2!C771:AF771)","v":0},{"$f":"Sheet1!$B771*65","v":0},null,{"$f":"$C771-$D771","v":0}]
[null,{"$f":"SUM(Sheet2!C772:AF772)","v":0},{"$f":"Sheet1!$B772*65","v":0},null,0]
[null,{"$f":"SUM(Sheet2!C773:AF773)","v":0},{"$f":"Sheet1!$B773*65","v":0},null,0]
[null,{"$f":"SUM(Sheet2!C774:AF774)","v":0},{"$f":"Sheet1!$B774*65","v":0},null,0]
[null,{"$f":"SUM(Sheet2!C775:AF775)","v":0},{"$f":"Sheet1!$B775*65","v":0},null,0]

{"sheet":"Sheet2","index":2,"n_rows":409,"n_cols":33,"rows_kept":409,"cut":false,"hidden":true,"merged":[]}
["كود الموظف  ","اسم الموظف ","2019-03-02","2019-03-03","2019-03-04","2019-03-05","2019-03-06","2019-03-07","2019-03-08","2019-03-09","2019-03-10","2019-03-11","2019-03-12","2019-03-13","2019-03-14","2019-03-15","2019-03-16","2019-03-17","2019-03-18","2019-03-19","2019-03-20","2019-03-21","2019-03-22","2019-03-23","2019-03-24","2019-03-25","2019-03-26","2019-03-27","2019-03-28","2019-03-29","2019-03-30","2019-03-31","اجمالي"]
[null,"ابانوب بشاره نصر بشاره",1,1,1]
[null,"ابراهيم احمد محمد عيسي",null,null,null,null,null,1,2]
[null,"ابراهيم عادل ابراهيم جباره",null,1,null,1,1,1,null,null,1,1,1,1,1,null,null,1,1,null,1,1,null,null,1,1,null,null,1,null,null,1]
[null,"ابراهيم عبدالحميد اسماعيل",null,null,null,null,null,null,null,null,1]
[null,"ابراهيم عبدالله محمد علي",null,null,null,null,null,null,null,null,null,null,null,null,null,null,null,null,null,null,null,null,null,2,1,null,null,1,null,null,2]
[null,"ابراهيم عقيلي ابراهيم حماد",null,null,null,null,null,null,null,null,null,null,null,1,1,2,2,null,2,null,2,1,2,2,1]
[null,"ابراهيم كامل علي عويان",1,1,1,1,1,1,1,1,1,1,1,1,null,1,1,null,1,1,1,null,null,1,1,1,1,1,null,1,1,1]
[null,"ابراهيم محمد ابراهيم جاد",null,null,null,null,null,null,null,null,null,null,null,null,null,null,null,1,1,null,null,1,null,null,null,1]
[null,"ابراهيم محمد شعيب علي",null,null,null,null,null,null,null,null,null,null,null,null,null,null,null,null,null,null,null,null,null,null,null,null,null,1,1]
[null,"ابراهيم يوسف درويش ابراهيم",null,null,null,null,null,null,null,null,null,1,2,1,1,2]
[null,"ابوالسعود صابر ابوالسعود",null,null,null,null,null,null,null,null,null,null,null,null,null,null,null,null,null,null,null,null,null,null,null,1]
[null,"ابوالعلا محمد ابوالعلا",null,1,null,1,1,1,1,1,1,2,1,1,2,null,1,1,2,1,null,2,null,null,1,1,1,1,1,null,2,2]
[null,"ابوبكر عبدالعزيز عثمان",1,2,2,2,1,2,2,2,2,2,2,2,1,2,2,1,2,2,2,1,2,2,2,2,2,1,2,1,2,2]
[null,"احمد ابو نبوت احمد",null,null,null,null,null,null,null,null,null,null,null,2,1,1,1,2,1,1,1]
[null,"احمد اشرف محمد حسنين",null,null,null,null,null,null,null,null,null,null,null,null,null,2,2,1,2,1,2,1,1,2,2,1,1,1,2,null,1,2]
[null,"احمد انور محمد الهلوبي",null,1,null,1,null,null,null,null,null,null,null,null,1,null,null,1,1,null,null,null,1,null,1,1]
[null,"احمد ايمن نبوي",null,null,null,null,null,null,null,null,null,null,null,null,null,null,1]
[null,"احمد جلال احمد محارم",1,2,1,2,2,1,1,2,2,1,2,2,1,1,2,2,1,1,2,1,2,2,2,2,2,1,2,1,2,1]
[null,"احمد جمال احمد هلال",null,null,1,null,1,1,1,1,null,1]
[null,"احمد جمال عيسي حمزه",1,1,1,1,1,1,2,2,null,1,1,1,1,null,null,1,null,null,null,null,null,1,null,null,null,null,null,null,1]
[null,"احمد حسن حسن حبيب",null,1,1,1,null,null,null,null,1,1,1,null,null,null,null,null,1,1,null,null,null,null,null,1]
[null,"احمد حسن سعد محمد مبروك",null,null,null,null,1,null,null,null,null,null,null,null,null,null,null,null,null,null,1]
[null,"احمد حسن طه محمد",null,null,null,null,null,null,null,null,null,null,null,null,null,null,null,null,null,null,null,null,null,null,null,null,1,1]
[null,"احمد حسنين ابراهيم",2,2,1,1,2,1,1,2,null,null,null,1,null,null,2,null,1,null,1,1,null,1]
[null,"احمد حسين مبروك حسين",null,1,null,1,1,null,1,null,1,1]
[null,"احمد خليل عثمان البربري",1]
[null,"احمد خميس محمود عبدالنبي",2,2,1,1,2,1,1,2,2,2,1,2,1,2,2,1,2,1,2,1,1,2,1,2,1,1,1,1,1,2]
[null,"احمد رجب مرشدي محمد علي",null,1,1,1,1,null,1,null,null,1,null,null,1,null,1,null,1,1,1,null,1,1,null,null,null,1,1,1,1]
[null,"احمد رشاد عيسي محمد",null,null,null,null,null,null,null,null,null,null,null,null,null,null,null,null,null,null,null,null,null,1,1,null,null,null,1,null,2,1]
[null,"احمد رضا حلمي عبدالوهاب",null,null,null,1,1,1,1,null,null,1,null,null,null,null,null,null,null,null,null,null,null,null,null,null,null,1]
[null,"احمد زغلول احمد القماش",null,null,null,null,null,null,null,null,null,null,null,null,null,null,null,null,null,null,null,null,null,null,null,1,1,1,2,null,1,2]
[null,"احمد سامي السيد احمد",null,null,null,null,null,null,null,null,null,null,null,null,null,null,null,null,null,null,null,null,null,null,1,1,1,1]
[null,"احمد سلامه رمضان",1,null,null,null,null,null,null,null,null,null,null,1,null,2,1,1]
[null,"احمد صلاح محمود علي ",null,1,1,1,1,1,1,1,null,1,null,1,1,1,null,1,null,1,1,1,1,null,1,1,1,1,2]
[null,"احمد عادل فتحي محمد",null,null,null,null,null,null,null,null,null,null,null,null,null,null,null,1]
[null,"احمد عبدالباسط محمد الطباخ",null,null,null,1]
[null,"احمد عبدالتواب احمد سالمان",null,null,null,null,null,null,null,null,null,1,1,null,null,null,null,null,null,null,null,null,null,null,null,null,1,1,1]
[null,"احمد عبدالحميد حسن",null,null,null,1,1,1,null,null,null,null,1,null,1,null,null,null,null,1,null,1,null,null,null,null,null,1,1,null,null,1]
[null,"احمد عبدالحميد عبدالمنصف",null,null,null,null,null,null,null,null,1]
[null,"احمد عبدالرحمن حسن"]
[null,"احمد عبدالعزيز عبدالمقصود",2,2,1,2,2,1,2,2,2,2,1,2,null,null,1,2,2,1,1,1,2,2,2,2,1,2,2,null,2,1]
[null,"احمد عبدالله كامل عبدالعزيز",null,null,null,null,null,null,null,null,null,null,null,null,null,null,null,1]
[null,"احمد عبدالمولي محمد عبدالغفار",null,null,null,null,null,null,null,null,null,null,null,null,null,null,null,null,null,"                                                                                                                                                                                                                                                                                                                                                                                                                                                 ",null,null,null,null,null,null,null,1]
[null,"احمد فتحي ابراهيم سلامه",1,1,1,null,1,null,null,1,1,null,1,1,1,null,null,null,1,1,null,null,null,1,null,1,1,1,null,null,1,1]
[null,"احمد فهمي علاء عبدالسلام",null,null,null,null,null,null,null,null,null,null,null,1]
[null,"احمد فهمي علي سلام",null,null,null,null,null,null,null,null,null,null,null,null,1,1]
[null,"احمد مجدي احمد الشرقاوي",null,null,null,null,null,null,null,null,null,null,null,null,null," ",null,null,null,null,null,null,null,null,null,null,null,1,1]
[null,"احمد محسن سعد محمد مبروك",null,null,1,2,null,1,null,null,null,2,1,2,null,null,null,null,1,1,1,null,1,null,null,null,1,1,null,null,2,1]
[null,"احمد محمد احمد حسن",1,null,null,null,null,null,null,null,null,null,null,1,null,1,1,2,1,1,1,1,2,1,1,2,1,null,null,1,1,2]
[null,"احمد محمد جاد الضي",null,null,null,null,null,null,null,null,null,null,null,null,null,null,null,null,null,null,null,null,null,null,null,null,null,null,1]
[null,"احمد محمد جمعه علي موسي",null,null,null,1,null,null,null,null,null,null,1,null,null,null,null,null,1,null,1,null,null,null,null,1,1,1]
[null,"احمد محمد حمد عبدالسيد",2,null,1,1,1,2,null,2,1,1,1,1,null,null,2,1,1,1,1,null,1,2,1,1,null,null,null,null,2,1]
[null,"احمد محمد عبدالعزيز زنون",null,null,null,null,1,1]
[null,"احمد محمد عبدالفتاح اسماعيل",null,null,null,null,1,null,null,null,null,null,null,1,1,null,null,null,null,null,1,1,1,null,null,null,null,2]
[null,"احمد محمد عبدالله سيد احمد",null,1,1,1,1,1,null,1,null,null,null,1,null,null,null,null,1,1,null,null,1,1,1,1]
[null,"احمد محمد عبدالله محمد",null,null,null,null,null,null,null,null,null,null,null,null,null,null,null,null,null,null,null,null,null,null,null,null,1,null,null,1]
[null,"احمد محمد عبدالمقصود",null,null,null,null,null,null,null,null,null,null,null,null,null,null,null,null,null,null,1,1]
[null,"احمد محمد عبدالمنعم عثمان  الجندي",null,null,null,null,null,null,null,null,null,null,null,null,null,null,null,null,null,null,null,null,null,null,1,1,null,null,null,null,null,1]
[null,"احمد محمد علي محمد علي",null,null,null,null,null,null,1,null,null,null,1,null,null,null,null,null,null,null,null,null,null,null,null,null,null,null,null,null,null,1]
[null,"احمد محمد محمد زيدان",null,null,1,1,1,1,null,null,1,1,null,null,1,null,null,null,1,1]
[null,"احمد محمد محمد عبدالسيد",null,null,null,null,null,null,null,null,null,null,null,null,null,null,null,null,null,null,null,null,null,null,null,null,1,null,1]
[null,"احمد محمود احمد حبيب",null,null,null,null,null,null,null,null,null,null,null,null,null,null,null,null,null,null,1,1,2,1,1]
[null,"احمد محمود عبدالغفار",null,1,1,null,1,1,1,1,1]
[null,"احمد محمود محمد حبيش",null,null,null,null,null,null,null,null,null,null,null,null,null,null,null,null,null,null,1,1]
[null,"احمد محمود محمد حسين",null,1,1,1,1,1,null,null,null,1,1,null,1,null,null,null,1,1,null,null,null,null,1,1,1,1,1,null,null,1]
[null,"احمد محمود مصطفي علي",1,1,null,null,1,1,1,2,null,2,2,2,null,null,null,null,1,null,1,1,1,2,null,null,2,2,2,1,2,1]
[null,"احمد مرزوق عبدالحفيظ امين",null,null,null,null,null,null,null,null,null,null,null,null,null,null,null,1]
[null,"احمد منير محتمد سعد",1,1,1,null,1,null,1,1,1,1,1,null,null,null,null,1,null,1,1,null,1,1,1,null,1,1,null,1,null,1]
[null,"ادم رمضان عوض محمد",2,2,2,2,null,null,1,null,null,null,null,null,1]
[null,"ادهم رمضان عوض محمد",null,null,null,null,null,null,null,2,2,1,2,1,null,2,1,null,1,1,1,null,1,2]
[null,"اسامه جمعه عبدالعظيم",null,null,null,null,null,null,null,null,null,null,null,null,1,null,null,1,null,1,1,null,null,null,null,1]
[null,"اسامه عبدالله محمود عبدالله",null,null,null,null,null,null,null,null,null,null,null,null,null,null,2,1,2,1,1,1,1,2,1,null,1,1,1,1,2,1]
[null,"اسامه محمد عبدالمنعم الغريب"]
[null,"اسلام احمد رجب عيد"]
[null,"اسلام طارق عبدالفتاح",null,null,null,null,null,null,null,null,null,null,null,null,null,null,null,null,null,null,1,1]
[null,"اسلام محمد عبدالرحيم",2,1,2,2,1,1,1,2,2,2,2,1,null,2,2,null,2,1,2,1,2,2,2,1,1,2,1,1,2,1]
[null,"اسلام محمود ابراهيم حسن",2,2,2,1,1,null,null,null,null,null,2,2,null,2,2,1,2,2,1,null,null,null,1,1,2,1,2,1,2,1]
[null,"اسلام مسعد عبدالعزيزسليمان",null,null,null,null,null,null,null,null,null,null,null,null,null,null,null,null,null,null,null,null,null,null,null,1,1,1,1,null,null,1]
[null,"اسلام مصطفي علي ابوالحديد",null,null,null,null,null,null,null,null,null,null,null,1,1,null,null,null,null,null,1,null,null,null,1]
[null,"اسلام مصطفي محمد عبدالعزيز",1,1,2,1,2,1,1,2,1,1,1,1,1,1,1,1,2,1,2,1,1,2,1,1,2,1,1,null,1,1]
[null,"اسماعيل احمد محمود احمد",1,2,2,2,2,null,1,2,2,1,2,1,null,2,1,1,1,1,1,null,1]
[null,"اسماعيل محمد اسماعيل الطنطي",null,1,1,2,2,2,null,null,2,2,2,2,1,null,null,2,2,2,2,1,null,null,null,null,2,2,2,1,2,1]
[null,"اسماعيل مشحوت محمد عيد",null,1,1,1,1,1,1,null,1,1,1,1,2,null,null,1,1,1,1,2,1,null,1,1,1,1,1,null,null,2]
[null,"اشرف صادق عطيه",null,1,1,1]
[null,"اكرامي محمد مجاور حموده",null,2,null,1,1,1,1,null,1,1,1,null,1,1,1,null,1,1,null,null,null,null,1]
[null,"اكرامي محمد محمد موسي",null,null,null,null,1,null,null,1,null,null,1,null,null,null,null,null,1,null,null,1,null,null,1]
[null,"السيد عبدالله عمر مصباح",null,null,null,null,null,null,null,null,null,null,null,null,null,null,null,null,null,null,null,null,null,null,null,null,null,null,1,null,2,2]
[null,"السيد مبارك السيد علي الكسبي",null,null,null,null,null,null,null,null,null,null,null,null,null,null,null,null,null,null,null,null,null,null,null,null,1,1,2,null,1,2]
[null,"السيد محمود احمد عبداللطيف",null,1,1,1,null,null,1,null,null,null,1,1,1,null,null,null,1,1,null,null,null,null,1,1,1,1,null,null,null,1]
[null,"السيد مسعود السيد محمد",null,null,null,null,null,null,null,null,null,null,null,null,null,null,null,null,null,null,null,null,null,null,1,2,1,2,2,null,2,1]
[null,"الشحات حميده مبروك اسماعيل",null,null,1,null,1,1]
[null,"انس سعد مصطفي سلامه",null,null,null,null,null,null,null,null,null,null,null,null,null,1,2,null,1,1,1,null,null,1]
[null,"انور عبدالسلام احمد العجوز",null,1,1,1,1,1,1,1,1,1,1,1,null,1,1,1,1,1,1,1,1,1,1,null,1,1,1,null,1,1]
[null,"ايمن السيد محمد ابوزيد",null,2]
[null,"ايمن جمال السيد السيد مشحوت",1,1,1,1,1,1,null,null,null,1,1,1,1,1,null,1,1,1,1,1,1,1,1,1,1,1,1,null,2,2]
[null,"ايمن عبدالعزيز محمد زايد",null,null,null,null,null,null,null,null,null,null,null,null,null,null,null,null,null,null,null,null,null,1]
[null,"ايمن محمود هاشم محمود",null,null,null,null,null,null,null,null,null,null,null,null,null,null,null,1,null,null,null,null,null,null,null,null,1,1]
[null,"ايهاب حسن عبدالنطلب غنيم",null,null,1,1,1,1,1]
[null,"ايهاب فتحي مصطفي"]
[null,"باسم فاروق محمود همام",null,2,2,2,2,null,1,2,1,1,null,1,null,1,2,1,null,1,1,null,1,2,1,1,null,1,null,null,2,1]
[null,"باسم نصر ابراهيم اسماعيل",null,null,null,null,null,null,null,null,null,null,null,null,null,null,null,1,1,1,1,null,1,1,1,1,1,1,null,1,1,1]
[null,"بدري عبدالله بدري عبدالله",2,1,null,1,null,1,1]
[null,"بلال جمعه عمر امين",1,1,null,null,null,null,null,1,1,null,1,1,null,null,1,2,2,1,1,null,null,1,1,null,null,1,1,null,1,1]
[null,"بلال رزق عبدالعزيز",2,2,2,null,1,null,null,null,null,null,null,null,null,1,2,1,1,1,1,null,1,2,1,1]
[null,"بلال عبدالعزيز احمد",null,null,null,null,null,null,null,null,null,null,null,null,null,null,null,null,null,null,null,1]
[null,"بلال عطيه على احمد",2,2,2,2,null,null,null,2,2,1,2,1,1,2,1,1,2,1,2,null,null,2,null,null,null,null,null,null,2]
[null,"بلال محمد عبدالتواب",null,null,null,null,null,1]
[null,"بلال محمد عبدالعزيز محمد علي",null,null,1,2,2,1,2,2,2,2,1,2,1,1,2,2,2,2,2,2,2,2,2,2,1,2,2,null,2,1]
[null,"بيشوي رضا جرجس سعد",null,null,1,1,1,null,1,null,null,null,1,null,null,null,null,1,null,null,null,null,1,1,1,null,1,1,null,1,1]
[null,"جابر صبري محمود اسماعيل",null,null,null,null,null,null,null,null,null,null,null,null,null,null,null,null,null,null,1]
[null,"جاد رزق عبدالعزيز احمد شعيشع",null,null,null,1]
[null,"جرجس موريس وهيب",1]
[null,"جمعه حمدي زكي محمد",null,null,null,null,null,null,null,null,null,null,1,1,1,null,1,1,1,null,1,1,1,1]
[null,"حازم عبدالجليل احمد",null,null,null,null,null,null,null,null,null,null,null,null,null,null,null,null,null,null,null,null,null,null,null,null,1,null,null,null,1]
[null,"حسام عصام فتحي محمد",null,null,null,1,null,null,null,null,null,null,null,null,null,null,null,null,1,null,null,null,null,null,null,1,1]
[null,"حسام فتحي احمد الشامي",null,null,null,null,null,null,null,null,null,null,1,2,1]
[null,"حسام كريم ابراهيم السيد",1,2]
[null,"حسام محمد محمود يوسف",1,1,1,1]
[null,"حسام نبيل محمود ",2,1]
[null,"حسب النبي سعيد فتحي",null,1,1,1,1,1,1,null,1,1,1,1,null,1,1,1,1,1,1,null,1,null,1,1,1]
[null,"حسن الحسيني مسعد",1,2,1,1,1]
[null,"حسن رمضان السيد سليم",null,null,1]
[null,"حسن سامي سعيد",null,null,null,null,null,null,null,null,null,null,null,null,null,null,null,null,null,1,null,null,1,null,null,null,null,null,1,null,null,1]
[null,"حسن سامي سعيد الكر",null,null,null,null,null,null,null,null,null,null,null,null,null,null,null,null,null,1,1]
[null,"حسن عبدالغفار محمد عبدالعليم",2,1,null,1]
[null,"حسني عزالدين عبدالفضيل",null,1,1,1,1,null,null,null,1,1,1,1,null,null,null,1,1,1,1,1,null,null,1,1,1,1,1,null,null,1]
[null,"حسين عبدالغنى السيد محمد",1,1,1,1,null,1,1,1,1,1,1,1,null,1,1,1,1,1,1,null,1,1,1,1,1,1,null,1,1,1]
[null,"حماده رجب عبدالحفيظ",null,null,null,null,null,null,null,null,null,null,null,null,null,null,null,null,null,null,null,null,null,null,null,null,null,null,null,null,null,1]
[null,"حماده مرعي سعد محمد",null,null,null,null,null,null,null,null,null,null,null,null,null,null,null,null,null,null,null,null,null,null,null,null,null,1]
[null,"خالد عوض السيد عبدالرحمن",null,null,null,null,null,null,null,null,null,null,null,null,null,null,null,1,1,1,1,1,1,1,1,1,null,null,2,null,1,1]
[null,"خالد محمود محمد عبداللطيف",1,2,2,2,null,null,1,1,1,1,null,1,null,null,1,1,null,1,null,null,null,1]
[null,"خيري احمد عبدالغني هنداوي",null,null,null,null,null,null,null,null,null,null,null,null,null,null,null,null,null,null,null,null,null,null,1,1,1,1,1,null,1,1]
[null,"درويش الجوهري ابراهيم البري",null,null,null,null,null,null,null,null,null,null,1,1,1,null,null,null,null,null,null,null,null,null,null,null,1,1]
[null,"درويش رافت درويش",2,2,1,1,1,null,null,null,2,2,2,2,1,2,2,1,2,2,2,1,2,2,2,1,1,2,2,1,2,2]
[null,"راجي محمد الصباحي",null,null,null,null,null,null,null,null,null,null,null,1,1,null,null,null,null,null,null,null,null,null,1,1,1,1,1]
[null,"راعي سيد علي بربر ",2,2,2,2,null,null,null,null,null,null,null,null,null,null,null,null,null,null,null,null,null,null,null,1,2,2,1,1,2,2]
[null,"رافت اشرف رفعت امين",null,null,null,null,null,null,null,null,null,1,1,null,null,1,1,null,1,1,1,null,1,null,1,null,1,1,null,null,1,1]
[null,"رافت كامل عبدالله  عبدالعزيز",null,null,null,null,null,null,null,1]
[null,"رزق علاء رجب نصر عيسي",null,null,null,null,null,1,2]
[null,"رزق محمد رزق اسماعيل",null,null,null,null,null,1]
[null,"رضا غريب صقر محمد",null,null,1]
[null,"رضا معوض عباس",null,null,null,null,null,null,null,null,null,null,null,null,null,null,null,null,null,null,null,null,null,null,null,1,null,1]
[null,"رضوان شحاته احمد",null,null,null,null,null,null,null,null,null,null,null,null,null,null,null,null,null,null,null,null,null,null,null,null,null,1]
[null,"رفعت اشرف رفعت امين",1,null,1,1,1,null,1,1,1,null,1,1,null,null,null,1,null,null,null,null,null,null,null,1,null,1]
[null,"زكريا عبدالفتاح عبدالحميد",null,null,1,1,1,1,1,1,1,1,1,1,1,1,null,1,1,1,1,1,1,1,1,1,1,1,1,null,1,1]
[null,"زياد سالم احمد فراج",null,null,1,1,1,1,null,1,1,1,null,1,null,null,null,null,null,null,1,null,1]
[null,"سامح انور طلبه عطاالله",1,1,1,1,1,null,null,null,null,null,null,null,null,null,null,null,null,1,1,null,1,null,null,null,null,null,null,1]
[null,"سامح عابدين محمد علي",null,null,null,null,null,null,null,null,null,null,null,null,null,null,1,1,1,1,1]
[null,"سامي صبري جبر علي",null,1,1,1,null,1,1,null,1,1,1,1,null,null,1,1,1,1,null,null,null,1,null,1,1]
[null,"سامي عبدالله محمد سيد احمد",null,1,null,1,1,null,null,1,1,null,null,null,null,null,null,1,null,1,1,null,null,1,1,null,null,null,null,null,1]
[null,"سامي محمد عبده السيسي",null,null,null,1,1,null,2,2,1,2,1,2,null,null,1,2,1,2,1,1,1,2,1,2,null,1,1,1,1,1]
[null,"سعد محمد سعد خرش",null,null,null,null,null,null,1]
[null,"سعودي محمد طلبه محمد",null,null,null,null,null,null,null,null,null,null,null,null,null,null,null,null,null,null,null,null,1]
[null,"سعودي محمد عطيه",null,null,1,1,2,1,2,1,2,1,1,1,null,1,2,2,1,2,2,1,null,1,2,null,null,2,1,null,2,1]
[null,"سعيد علي عبدالهادي ",null,null,1,1,1,1,1,null,1,null,1,1,1,null,null,1,1,1,1,1,1,null,1,1,null,null,1]
[null,"سليم اسماعيل بيومي سليم ",null,null,1,null,null,1,1,null,null,null,null,null,null,null,null,null,null,null,null,1,null,null,1,null,null,null,null,null,1,1]
[null,"سليم عمار رحصان عيد"]
[null,"سيد فاروق فؤاد سعد",null,null,null,null,null,null,null,null,null,null,null,null,null,null,null,null,null,null,null,null,null,null,null,null,null,null,null,null,1,2]
[null,"شامل مبروك حسن محمد",null,null,null,null,1]
[null,"شريف احمد محمد عبدالله",1,1,null,1,1,1,1,1,2,null,1,1,null,null,1,1,null,null,null,null,1,null,2,null,1,null,1,1]
[null,"شريف عبدالعزيز علي هندي",null,null,null,null,null,null,null,null,null,null,null,null,null,null,null,1,null,1,null,1,null,null,1,1,1,1]
[null,"شريف عمر امين محمد",null,1,1,1,1,1,null,1,1,1,1,1,1,null,1,1,1,1,null,1,null,1,1,1,1,1]
[null,"شعبان الشحات المتولي الشوكي",null,null,null,null,null,null,null,null,null,null,null,null,null,null,null,null,null,null,null,null,null,null,1]
[null,"شعبان بلبل الشحات المتولي",null,null,1,2,2,2,2,2,2,2,1,2,2,1,2,1,1,2,1,1,2,2,1,1,1,1,2,1,2,1]
[null,"شعبان حمدي شعبان الهليس",null,null,null,null,null,null,null,null,null,null,null,null,null,null,null,null,null,null,null,null,null,null,null,null,null,null,1]
[null,"شعبان عبدالكريم علواني عبدالكريم",null,null,null,null,null,null,null,null,null,null,null,null,null,null,null,null,null,null,null,null,null,null,null,null,null,null,1,1,2,2]
[null,"شكر صابر ابراهيم رضوان",1,1,1,1,null,1,null,1,1,1,1,1,1,null,1,1,1,null,1,1,null,1,1,1,1,null,1]
[null,"شهاب ابراهيم فرج عبدالعزيز",null,null,null,null,null,null,null,null,null,null,null,null,null,null,null,1]
[null,"صابر صبري محمود اسماعيل",null,null,null,null,null,null,null,null,null,null,null,null,null,null,null,null,null,1,null,1,1,1,1,1,1,1,1,null,1,1]
[null,"صادق عيد السيد عبدالرحمن",null,null,null,null,null,null,null,null,null,null,null,null,null,null,null,null,null,null,null,null,null,null,1,1]
[null,"صبحي توفيق السيد",1,1,1,1,1,1,2,1,1,1,1,1,null,null,1,null,1,null,null,null,1,1,1]
[null,"ضياء محمد محمد شحاته بحيري",null,null,null,null,null,null,null,null,null,null,null,null,null,null,null,1]
[null,"طارق عبدالفتاح السعيد عبدالباقي",null,1,null,null,1,1,null,1,null,1,1,null,null,null,null,null,null,1,null,null,1,1,1,1,1,1,1,1,null,1]
[null,"طارق عرفه عنتر زراع",null,null,null,null,null,null,null,null,null,null,null,1,null,1,1,2,1,1,1,1,2,1,1,2,1,null,null,1,null,2]
[null,"طارق محمود محمود عبدالمعطي",2,1,1,1,1,null,null,1,null,1,2,1,1,null,2,1,1,2,2,null,2,2,null,1,1,null,1,null,null,1]
[null,"طه حسن حسن الهندي",2,2,1,1,1,1,1,2,1,1,1,1,1,1,1,1,2,1,2,1,1,2,1,2,1,1,1,1,1,2]
[null,"طه عيد عبدالله شحاته",null,null,null,null,null,null,null,null,null,null,null,null,null,null,null,null,null,1,2,1,1,1,1,1,1,null,1,null,1,1]
[null,"عاصم السيد عبدالرحمن الدسوقي",null,null,null,null,null,null,null,null,null,null,null,null,null,null,null,null,null,null,null,null,null,null,1,1]
[null,"عاطف ابراهيم حليم مشحوت",null,null,null,1,null,1,null,null,null,null,null,null,null,null,null,null,1,1,1,null,null,1]
[null,"عاطف محمد محمد دراز",null,1,1,1,1,1,1,null,1,null,1,1,1,null,null,null,null,1,1,1,1,null,1,1,1,1,1,null,null,1]
[null,"عامر ابراهيم عامر بدوي",null,1,1,null,1,1,null,null,null,null,1,null,null,null,null,1,null,1]
[null,"عامر حبشي محمد حبشي",null,null,1,2,2,2,2,2,2,2,1,2,2,null,2,1,1,2,1,1,2,2,2,null,1,1,2,null,1,1]
[null,"عبدالحميد غريب عبدالحميد",null,1,1,1,1,1,1,null,1,1,1,1,null,1,1,1,1,1,1,null,1,1,1,1,1,1,1,1]
[null,"عبدالرحمن ابراهيم عبدالغني الطوخي",null,null,null,null,null,null,null,null,null,1,null,null,1,null,1]
[null,"عبدالرحمن ابراهيم عيد الفقي",null,null,1,1,null,null,1]
[null,"عبدالرحمن سالم عبدالرحمن",1,null,1,1,null,null,null,null,null,null,1,null,1,1,null,null,1,1,1,null,1,1,1,1]
[null,"عبدالرحمن عبداللاه عبدالعزيز طه",null,null,null,null,null,null,null,null,null,null,null,1,null,1,1,1,null,1,null,null,1,null,null,1,null,null,1,1]
[null,"عبدالرحمن محمد زياد محمد ",1,1]
[null,"عبدالستارعيدعبدالستارعيسي ",null,null,null,null,null,null,null,null,null,null,1,1,1,null,1,null,1,1,null,1,1,null,1,1,1]
[null,"عبدالسلام فتحي شلبي",null,null,null,null,null,null,2,2,2,2]
[null,"عبدالسلام فتحي محمد",null,null,null,null,null,null,null,null,null,null,null,1,null,null,null,null,null,1]
[null,"عبدالسلام مصطفي علي",null,null,null,null,null,null,null,null,null,null,null,null,null,null,null,null,null,null,null,1]
[null,"عبدالعزيز حمدي عبدالعزيز محمد",null,null,null,null,null,null,null,null,null,null,null,null,null,null,null,null,null,null,null,null,null,null,null,null,null,null,1]
[null,"عبدالغفار محمد منير",1,1,1,1,null,1,null,1,null,1,null,1,null,null,1,null,null,null,null,null,null,1]
[null,"عبدالغفور محمد عبالغفور دره",1,1,1,null,null,1,null,null,null,null,null,null,null,null,null,null,null,null,null,null,null,null,null,1]
[null,"عبدالغني جمال عاشور محمد",null,null,null,null,null,null,null,null,null,null,null,null,null,null,null,null,null,null,1,1,1,null,1,1,1,1,1]
[null,"عبدالفتاح جمعه عبدالحكيم جمعه",null,null,null,null,1,1,null,null,1]
[null,"عبدالفتاح عبدالقوي عبدالفتاح",null,1,1,1,1,1,null,null,1,null,null,1,null,1,null,2,null,1,2,null,null,2,null,1,2,1,2,null,1]
[null,"عبدالكريم محمد محمود",null,null,null,null,null,null,null,null,null,null,null,null,null,null,null,null,null,null,null,null,null,null,null,null,null,1]
[null,"عبدالله ابوالسعود عبدالمجيد",null,null,2,2,2,2,2,1,1,2,2,2,1,2,null,1,2,1]
[null,"عبدالله ابوبكر سلامه",null,null,null,null,null,null,null,1]
[null,"عبدالله احمد كامل علي عويان",null,1,1,1,null,1,1,null,1,1,null,1,null,1,1,1,1,1,1,null,1,1,1,null,1,1,null,1,1,1]
[null,"عبدالله حسين احمد جاد الرب",1,null,1,1,null,1,null,2,null,null,1]
[null,"عبدالله سالم عبدالرحمن",null,null,null,null,null,null,null,null,null,null,null,1]
[null,"عبدالله سامي مصطفي الجمال",1,null,1,null,null,null,1,null,null,null,null,null,null,1,null,null,null,null,null,null,null,null,null,null,null,null,1]
[null,"عبدالله سامي مصطفي كامل القط",null,1,null,null,null,null,1,null,null,null,1,null,1,null,null,1,null,null,null,null,null,null,null,1]
[null,"عبدالله شعبان عبدالله",null,null,null,null,null,null,null,1,1,1,1,1,null,null,1,1,1,1,1,null,null,1,1,1,1,1,1,null,1]
[null,"عبدالله عبدالحميد عبدالله",null,null,null,null,null,null,null,null,null,null,null,null,null,null,null,null,null,null,null,null,null,null,null,null,null,null,null,null,null,1]
[null,"عبدالله عبدالصادق محمد ",null,null,null,null,null,null,null,1,1]
[null,"عبدالله علي عبدالله علي",null,1,1,1,1,1,1]
[null,"عبدالله فوزي عبدالله مرجان",null,null,1,1,1,1,2,2,null,2,2,1,1]
[null,"عبدالله محمد الصافي عبدالفتاح",null,null,1]
[null,"عبدالله محمد صبحي متولي",null,null,null,null,null,null,null,null,null,null,1]
[null,"عبدالله محمد عبدالله خليفه محمد",null,null,null,null,null,null,null,null,null,null,null,null,null,null,null,null,null,null,null,null,1,1,1,null,1,1]
[null,"عبدالناصر احمد عبدالوهاب",1,1,1,null,null,null,null,null,1,1,1,1,1,null,null,1,1,1,null,null,null,1,1,1,1,1,1]
[null,"عبدالنبي حسين عبداللطيف",null,null,null,null,null,null,null,2,1,null,null,1,1,null,2,null,1,null,1,1,null,1]
[null,"عبدالواحد كمال عبدالواحد",null,null,null,null,null,null,null,null,null,null,null,null,null,null,1,1]
[null,"عز الدين فتحي قرني بكر",1,1,1,1,1]
[null,"عزت محمد ابوالعز",1,2,null,null,null,null,null,null,null,null,null,null,null,null,null,null,null,null,null,null,null,null,null,null,null,null,null,null,1]
[null,"عطيه مصطفي السيد الجنزوري",null,null,null,null,null,null,null,null,null,null,null,null,null,null,null,null,null,null,null,null,null,null,1]
[null,"علاء جمعه التايب جمعه",null,null,null,null,null,null,null,null,null,1,1,1,1,null,null,1,1,1,1,1,1,1,1,1,1,1,1,null,1,1]
[null,"علي احمد علي قنديل",2,2,1,2,1,2,2,null,2,2,1,null,1,2,2,1,2,2,2,1,1,2,1,2,2,2,2,1,2,2]
[null,"علي احمدعلي عوض العزب",null,null,1,null,null,null,null,1,1,null,2,2,2,null,null,null,null,null,2,1,2,1,1,1,1,1,1,1,1,1]
[null,"علي السيد رياض ",null,null,null,1,2,null,2]
[null,"علي صلاح علي سليمان",null,2,1,1,1,null,null,null,1,null,null,null,null,null,null,1,1,1,1,2,2,null,null,null,null,null,1,null,null,1]
[null,"علي عبدالباسط علي الجندي",null,null,null,null,null,null,null,null,null,null,null,1,1,null,null,null,null,null,null,null,null,1,1]
[null,"علي عبدالهادي علي",null,1,null,null,null,null,2,null,null,null,null,null,1,2]
[null,"علي عيسي امين عيسي",1,2,1,1]
[null,"علي غزالي ابراهيم",null,null,null,null,null,null,null,null,null,null,null,null,null,null,null,null,null,null,null,null,null,null,1]
[null,"علي محمد علي توفيق",1,1,null,1,null,1,1,null,null,null,1,1]
[null,"علي محمود محمد محمود الدجاج",2,2,1,1,1,1,1,2,1,null,null,1,null,null,2,null,1,null,1,1,1,2,null,null,1,1,2,1,1,2]
[null,"عماد عبدالله مصطفي عبدالله",null,1,1,1,null,1,null,null,null,1,2,null,null,null,null,null,1,2,null,null,null,1,2,null,1]
[null,"عماد محمد عبداللاه معوض",null,2,2,null,2,null,null,null,1,2,2,2,null,null,null,1]
[null,"عمارمحمد مصطفي شحاته",null,null,null,null,null,null,null,1]
[null,"عمر عبدالعال سليمان عثمان"]
[null,"عمر فتحي عبدالفتاح احمد",1]
[null,"عمر ممدوح ابراهيم جويده",null,null,null,null,null,null,null,null,null,1]
[null,"عمرو ثابت عبدالفتاح علي",null,1,1,1,1,1,null,null,1,1,1,1,1,null,null,1,1,1,1,1,1,null,1,1,1,1,1,null,null,1]
[null,"عمرو حامد عبدالله قناوي",null,null,null,null,null,null,null,null,null,null,null,null,null,null,null,null,null,1,null,null,1,null,null,null,1,null,null,null,null,1]
[null,"عمرو حامد عطا الله قناوي",null,null,null,null,null,null,null,null,null,null,null,2,1,1,1,2,1,null,1,1,1,1,1,2,null,null,1,1,2,1]
[null,"عمرو عبدالصمد محمد",null,null,null,null,null,null,null,null,null,null,null,null,null,null,null,null,null,null,null,null,null,null,1,null,null,null,1]
[null,"عمرو محمد حسن عبدالغني",2,1,2,1,1,1,null,2,1]
[null,"عمرو محمد عبدالصمد",2,1,2,1,2,1,1,1,2,1,2,1,1,1,2,2,1,1,2,1,2,1,1,1,1,1,1,1,1,2]
[null,"عمرو محمد عبدالفتاح",null,null,null,null,null,null,2,null,null,null,null,null,null,null,null,null,null,null,null,null,1]
[null,"عمرو محمد فهمي خليفه",null,null,null,null,null,null,null,null,null,null,null,null,null,null,null,null,null,null,null,null,null,null,null,null,null,null,null,null,1,1]
[null,"عيد عبدالمنعم عيد عجيبه",null,null,null,null,null,null,null,null,1,1,1,null,null,null,null,1,2,1,null,null,null,null,2,1,1,null,null,null,null,1]
[null,"فارس رشاد حماد عبدالهادي",null,null,1,null,null,1,null,null,null,null,null,null,null,null,null,1,1,1,1,1,1,null,1,1,null,1,1,1,1,1]
[null,"فارس صبري رزق",null,null,null,null,null,null,null,null,null,null,null,null,null,null,null,null,null,null,null,null,null,null,null,null,null,null,null,null,null,1]
[null,"فارس ياسر احمد عبدالعليم علي",1]
[null,"فايز عبدالله احمد ابراهيم",null,null,null,null,null,null,null,null,null,null,null,null,null,null,null,null,null,null,null,1,1,2,2,2,1,2,2,1,2,2]
[null,"فتحي احمد محمد عبده الحريري",null,null,1,null,null,null,null,null,1]
[null,"فهمي عباس عبدالدايم حلفايه",null,null,null,null,null,null,null,null,null,null,null,1,1,1,null,null,1]
[null,"فوقي جلال عبده النحري",null,null,1]
[null,"كامل عبدالله كامل الشيخ",null,null,null,null,null,null,null,1,1,1]
[null,"كريم سليمان عيد عبدالمحسن",2,1]
[null,"كريم عبدالحارس عبدالراضي",null,null,null,null,null,null,null,null,null,null,null,null,null,null,null,null,null,null,1,1,1,null,null,1,1]
[null,"كريم عبدالقوي عبدالفتاح",null,1,1,1,1,1,1,null,1,1,1,null,1,null,null,1,1,1,1,1,1,null,1,1,1,1,1,null,null,1]
[null,"كمال شريف عبدالمجيد بشر",null,null,null,null,null,null,null,null,null,null,null,null,null,null,2,1,1,1,1]
[null,"كيرلس صلاح رزق الله",null,null,null,null,null,null,null,null,null,null,null,null,null,null,null,null,null,null,null,null,null,null,null,null,null,null,null,null,1,2]
[null,"كيرلس غندي رزق مللك",1]
[null,"كيرلس فادي ناجي",null,null,null,null,null,null,null,null,null,1,1,1,null,null,null,1,1,1,null,null,null,null,null,null,1,1,1,null,null,1]
[null,"ماهر احمد علي حماد",1,1,1,1,1,1,1,null,null,1,1,1,1,1,1,1,null,1,1,1,1,1,1,null,1,1,1,null,1,1]
[null,"مبروك عبدالسلام عمار ابراهيم",1,2,2,1,2,1,2,2,2,2,null,null,null,null,null,null,1,1,2,2,2,1,2,2,2,1,2,1,1,2]
[null,"مبروك محمود مبروك مطر",null,1,1,1,1,1,1,1,1,1,1,1,1,1,1,1,1,1,1,1,1,1,1,1,1,1,1,null,1,1]
[null,"مجدي زكريا عباس",null,null,null,null,null,null,null,null,null,null,1,1,1,1,1,1,1,null,null,null,null,1,1,1,1,1,null,null,1,1]
[null,"محمد ابراهيم السيد ابراهيم",null,null,null,null,null,null,null,null,null,null,1,1,1,null,null,1,1,1,1,1,1,null,1,1,1,1,1,null,null,1]
[null,"محمد ابراهيم عاشور عبدالوهاب",null,null,null,null,null,null,null,1,1,null,null,null,null,null,null,null,null,null,null,null,1,1,1,null,null,null,null,null,1]
[null,"محمد ابراهيم عبدالمنعم مغربي"]
[null,"محمد ابراهيم محمود سليمان",null,1,1,1,1,1,1,null,1,1,1,1,1,null,null,1,1,null,1,1,1,null,1,1,1,1,1,null,null,1]
[null,"محمد احمد رفاعي محمد البياع",null,null,null,null,null,null,null,null,null,null,null,null,null,null,null,null,null,null,null,null,null,null,null,null,null,null,null,null,1,2]
[null,"محمد احمد زكريا شهبو",null,null,1,1,1,1,2,2,null,null,2,1,null,2,2,1,1,1,2,null,2,1,2,1,1,1,1,1,2,2]
[null,"محمد احمد سيد احمد محفوظ",null,null,1,null,null,null,null,null,1]
[null,"محمد احمد عبدالحكم عبدالمطلب",null,null,null,null,null,null,null,null,null,null,null,null,null,null,1,1]
[null,"محمد احمد عبدالرحيم",null,null,null,null,null,null,null,null,null,null,null,null,null,null,null,null,null,null,null,null,null,null,null,null,null,1]
[null,"محمد احمد عبدالمجيد عسل",null,1,1,null,1,1,2,null,1,1,null,1,1,1,null,1,1,1,null,1,1,null,1,1,null,null,1,null,1,1]
[null,"محمد احمد عبدالمقصود شتله ",1,1,1,1,1,1,null,null,2,null,1,null,1,null,1,1,2,null,null,1,null,null,2,null,1,null,null,null,null,1]
[null,"محمد احمد علي قنديل"]
[null,"محمد احمد عيداحمد",null,null,null,null,null,null,null,null,null,null,null,null,1,null,1]
[null,"محمد احمد محمد عبدالله",null,null,null,null,null,null,null,null,null,null,null,null,null,null,null,null,null,null,null,null,null,null,1]
[null,"محمد احمد مرضي",null,null,null,null,null,null,null,null,null,null,null,null,null,null,1,2,null,1,1,null,1]
[null,"محمد اسماعيل محمد احمد الديب",null,null,null,null,null,1,2]
[null,"محمد اشرف محمد محمود",1,null,null,null,null,null,null,null,null,null,1]
[null,"محمد السطوحي محمد عبدالعال",null,null,null,null,null,null,null,null,null,null,null,null,null,null,null,null,null,null,null,null,null,null,null,null,null,1,1,1,1]
[null,"محمد السعيد عبدالجواد",null,null,null,1,1,1]
[null,"محمد الشحات عبدالحميد",null,null,null,null,null,null,null,null,null,null,null,null,null,null,null,null,null,null,1,1,null,null,null,null,null,1,1,1]
[null,"محمد امين عبدالحميد شلبي",null,null,null,null,1,1,1,null,2,2,2,null,1,null,null,null,1,1,1,null,1,null,1,null,1,null,1,null,null,1]
[null,"محمد انور خميس السيد",null,null,null,null,1,null,null,null,null,null,null,null,null,null,null,null,null,null,1]
[null,"محمد جمال عبدالفضيل ابراهيم ",1]
[null,"محمد جمعه عبدالحكيم",null,null,null,null,null,null,null,null,null,1,null,null,null,null,null,null,null,1]
[null,"محمد جمعه عبدالعظيم محمد",null,1,1,1,null,1,null,null,1,null,1,null,1,null,null,1,1,null,1,1,null,null,null,1,1]
[null,"محمد حسام الدين محمد عباس",null,null,null,null,null,null,null,1]
[null,"محمد حسن صابر احمد",null,null,null,null,null,2,2,1]
[null,"محمد حسني خيرت عبدالعزيز",null,null,null,null,null,null,null,null,null,null,null,null,null,null,null,1]
[null,"محمد حمدي محمد علي ",null,null,null,null,null,1]
[null,"محمد خالد حلمي الشمالي",null,null,null,1,null,null,null,null,null,null,null,null,null,null,null,null,null,null,null,null,null,null,null,null,1,1,1]
[null,"محمد رجب عبدالظاهر عيد",null,null,null,null,null,null,null,null,null,null,1]
[null,"محمد رضا ابراهيم مبروك",null,null,null,null,null,null,null,null,null,null,null,null,null,null,null,null,null,null,null,null,null,null,1,1,null,1,null,null,null,1]
[null,"محمد رضا محمد علي اسماعيل",1,1,1,1,1,1,null,1,1,1,1,1,null,null,null,1,null,1,1,null,1,1,1,1,1,1]
[null,"محمد زكريا عبده البربري",1,2,1,2,1,1,2,null,null,null,1,1,1]
[null,"محمد سامي عبدالعزيز محمد",null,null,null,null,null,null,null,null,null,1]
[null,"محمد سعيد قطب محمود",null,null,null,null,null,null,null,null,null,null,null,null,null,null,null,null,null,null,null,null,null,null,null,null,null,null,null,null,1,1]
[null,"محمد سمير حسن عامر",1,null,1,1,null,1,null,null,null,1,1,1,null,1,1,1,1,1,1,2,1,1,1,1,1,null,2,null,1,2]
[null,"محمد شديد حسن  مراجعه علي الاسم",null,null,null,null,null,null,null,null,null,null,null,null,null,null,null,null,null,null,null,null,null,null,null,null,null,1]
[null,"محمد صبحي محمد الوكيل"]
[null,"محمد صبري محمد حميده",null,1,null,null,null,1,1,null,1,1,1,1,1,1,2,null,1,null,1,1,null,null,1,1,1,1,1]
[null,"محمد صبري محمود الشرقاوي",null,null,null,null,null,1]
[null,"محمد طارق سعيد محمد",1,1,1,null,null,1,2,null,null,null,1,null,1,1,null,1,null,null,null,null,null,null,null,1,null,null,1]
[null,"محمد طلعت سيد عبدالرحيم",null,null,null,null,null,null,null,null,null,null,null,null,null,null,1]
[null,"محمد عبدالباسط محمد الطباخ",null,null,1,null,null,1,1,null,null,1,1,null,1,null,null,1,1,1,null,null,null,null,null,1,null,null,1,null,null,1]
[null,"محمد عبدالجليل حلاجي عبدالجليل",1]
[null,"محمد عبدالحميد امين هندي",null,null,null,null,null,null,null,null,null,null,null,null,null,null,null,1,null,null,null,null,null,null,null,null,1,1]
[null,"محمد عبدالرحيم عبدالمنعم",1,1,1,2,2,null,1,2,2,2,2,1,null,2,1,2,1,2,2,1,1,2,2,1,1,2,1,1,2]
[null,"محمد عبدالعزيز محمد زايد",1,null,null,null,1,1,null,null,1,null,1,1,null,null,null,1,null,1,1,1,null,null,null,null,null,null,1,null,1,1]
[null,"محمد عبدالغني جبر غنيم",null,1,1,1,null,null,1,1]
[null,"محمد عبداللطيف احمد البسيوني",null,null,null,2,2,2,2,2,2,2,1,2,2,1,2,1,1,2,1,1,2,2,2,1,1,1,2,1,2,1]
[null,"محمد عبداللطيف محمد عثمان",null,null,1]
[null,"محمد عبده الهولي علي",null,null,null,null,null,null,1,2,2,1,2,1,1,2,1,1,1,1,1,1,1,2]
[null,"محمد علي احمد علي مقبول",null,null,null,null,null,null,null,null,null,1,2,1,1,2]
[null,"محمد علي محمود علي نبيده علي",null,null,null,null,null,null,null,1,1,1]
[null,"محمد عمران حسن محمد",null,null,null,null,null,null,null,null,null,null,null,null,null,null,null,null,null,null,null,null,null,null,1,null,1,1,1,1,null,1]
[null,"محمد غريب رفاعي البياع",null,null,null,null,null,null,null,null,null,null,null,null,null,null,null,null,null,null,null,null,null,null,null,null,null,null,null,null,1,2]
[null,"محمد فتحي عبدالجليل",null,null,1,1]
[null,"محمد فتحي عبدالمجيد النجار",2,1,null,1,1,1,1,1,null,null,null,null,null,null,2,1,1,2,1,1,1,2,2]
[null,"محمد فتحي عطية عبدالجليل ",null,1,null,null,1,1,1,null,2,1,2,1,1,2,null,1,1,1,1,1,1,null,1,1,1,1,1,1,1]
[null,"محمد فتحي فكري احمد",null,null,null,null,null,null,null,null,null,null,null,null,null,null,2,1]
[null,"محمد فتحي فوزي خالد",null,null,null,null,null,null,null,null,1]
[null,"محمد فرج عبدالعزيز عبدالسلام",null,null,null,null,null,null,null,1]
[null,"محمد فوزي صديق موسي",null,null,null,null,null,null,null,null,null,1]
[null,"محمد كمال احمد محمد",null,null,null,null,null,null,null,null,1,1,1,1,null,null,1]
[null,"محمد لطفي عطا",1,null,null,null,null,null,null,null,null,null,null,null,null,null,null,1]
[null,"محمد محروس علي عبدالعزيز",null,null,null,null,null,null,null,null,null,null,1]
[null,"محمد محمود ابراهيم الخولي",null,null,null,null,null,null,null,null,null,null,null,null,null,null,null,null,null,null,null,null,null,null,null,null,null,1]
[null,"محمد محمود حماده اسماعيل",null,null,null,null,null,null,null,null,1,1,1,1,null,2,1]
[null,"محمد محمود عبدالغفار عبدالهادي",1]
[null,"محمد محمود علي محمود",null,1,1,1,1,null,null,null,1,1,1,null,null,null,null,1,1,null,1,null,null,null,null,null,1,1,1,null,null,1]
[null,"محمد محمود محمد احمد",null,null,null,null,null,null,null,1,null,null,null,null,null,null,1]
[null,"محمد محمود محمد السقا",1,1,null,1,1,null,1,1,null,1,1,null,null,null,null,1,1,null,1,1,null,null,null,null,1,null,null,null,1]
[null,"محمد مخلص محمد محمد عوض",null,null,null,null,null,null,null,null,null,null,null,null,null,null,null,null,null,null,null,null,null,null,null,null,null,1]
[null,"محمد ممدوح محمد عبدالجواد",null,null,null,null,null,2,2,1,null,null,null,null,null,null,null,null,null,null,null,null,null,null,1,1,1,2,2,null,2]
[null,"محمد منصور عبدالمجيد",null,1,1,null,1,1,1,null,1,1,1,1,null,null,null,null,null,1,1,null,1,1,1,1,1,1,1,1,null,1]
[null,"محمد مهدي سالم",2,null,null,1,2,1,null,null,null,null,null,null,null,null,null,null,null,null,null,null,null,2,null,null,null,null,null,null,2]
[null,"محمد ناصر محمد سليم",null,null,null,null,null,null,null,null,null,null,null,null,null,null,null,null,null,null,null,null,1,null,null,null,null,null,null,null,1,1]
[null,"محمد ناصرعبداللطيف محمود حسب النبي",null,null,null,null,null,null,null,null,null,null,null,null,null,null,null,1]
[null,"محمد نور خميس السيد",null,null,null,null,null,null,null,null,1,null,null,null,null,null,null,null,null,null,null,null,1]
[null,"محمد وليد محمود الشحات",null,null,null,null,null,null,null,null,null,null,null,null,null,null,1,null,null,null,null,null,1]
[null,"محمد ياسر محمدعبدالحميد",null,null,null,null,null,null,null,null,null,null,null,null,null,null,null,null,null,null,null,null,null,null,1,2,1,null,2,null,2,1]
[null,"محمد يحيي محمد مبروك",2,null,2]
[null,"محمد يسري محمد رجب",null,null,null,null,null,null,null,null,null,null,null,null,null,null,null,null,null,null,null,null,null,null,null,1,1,1,null,null,null,1]
[null,"محمود ابراهيم عاشور عبدالوهاب",null,null,null,null,null,null,null,null,null,null,null,null,null,null,null,null,null,null,null,null,null,1,null,null,null,null,null,null,1]
[null,"محمود احمد عبدالمقصود عبدالعاطي",null,null,null,null,null,null,null,null,null,null,null,null,null,null,null,null,null,null,null,null,1]
[null,"محمود احمد محمد حمزة",null,null,null,null,null,null,null,null,1]
[null,"محمود اشرف محمد محمود",null,1,1,1,1,1,1,null,2,1,1,1,1,2,null,1,1,1,1,1,1,null,1,1,1,1,1,1,1]
[null,"محمود بغدادي توفيق",1,null,1,1,1,null,null,null,null,null,1,1,1,null,1,1,1,1,1,1,null,1,1,1,1,1,1,null,1]
[null,"محمود تحسين جاد الرب",null,null,null,null,null,1,2,2,null,null,2,1,null,2,2,1,1,1,1,null,2,1,2,1,1,1,1,1,1,2]
[null,"محمود جلال عثمان",null,null,null,null,null,null,null,1]
[null,"محمود جوده احمد علي"]
[null,"محمود حسن السيد احمد",null,null,null,null,null,null,null,null,null,null,null,null,null,null,null,null,null,null,null,null,null,null,null,1,1,1,2,null,1,1]
[null,"محمود خليل عثمان البربري",1,1,1,2,2,null,1,1,2,1,2,1,1,null,1,1]
[null,"محمود رجب عبدالظاهر ",null,null,1,2,2,2,2,2,2,2,null,2,2,1,2,1,2,1,1]
[null,"محمود رفعت محمدالجزار",null,null,null,null,null,null,null,null,null,null,null,null,null,null,null,null,null,null,null,null,null,null,null,null,null,1,1,null,1,1]
[null,"محمود سامي عبدالعزيز",2,1,1,1,2,1,2,2,1,1,1,1,null,1,2,1,2]
[null,"محمود سعيد نجم ",null,null,1,1,1,null,null,null,1,1]
[null,"محمود صبري محمود الشرقاوي",null,null,1]
[null,"محمود عامر محمد متولي",null,null,null,null,null,null,null,null,null,null,null,null,null,null,null,null,null,null,null,null,null,null,null,null,null,1,2]
[null,"محمود عبدالسميع السعيد عبدالجواد",1,2,1,1,1,2,2,2,2,2,1,1,1,1,2,1,2,2,2,2,1,2,1,2,1,1,2,null,2,1]
[null,"محمود عيد محمد عبدالغني",null,null,null,null,null,null,null,null,null,null,null,null,null,null,null,null,null,null,null,null,null,null,null,null,null,null,null,null,null,1]
[null,"محمود فتحي فوزي خالد",null,null,null,null,null,null,2,1,1,2,null,2,1]
[null,"محمود فوزي صديق",null,null,null,null,null,null,null,null,1,null,1,1,1,1,1,1,1,null,1,1,1,1,1,1,null,1,1,null,1,1]
[null,"محمود محمد احمدعبدالمقصود",2,2,1,2,2,1,2,2,2,null,null,null,null,null,2,null,1,2,1,1,1,2,1,1,null,1,1,null,1,1]
[null,"محمود محمد محمد الشرباصي",null,null,null,null,null,null,null,null,null,null,null,null,null,null,null,null,null,null,null,null,null,null,null,1,1,2,1,null,1]
[null,"محمود نمر وهيب ادم",1,null,null,null,1,null,2,1,2,2,1,2,2,2,1,2,null,1,1,null,1,2,1,null,null,1,1,1,1]
[null,"محمود يوسف جامع احمد",null,null,null,null,null,null,null,null,null,null,null,null,null,null,null,null,null,null,1,1,1,null,null,1,1]
[null,"محمود يوسف محمود مهدي",null,null,null,null,null,null,null,null,null,1,1,null,null,null,1,null,1]
[null,"مختار علي محمد عبدالخالق",null,null,null,null,null,null,1,1,1,1]
[null,"مختار محمد محمود محمد حسن",null,null,null,null,null,null,null,null,null,null,null,null,null,null,null,null,null,1,1,null,null,2,1]
[null,"مصطفي احمد عبدالحميد عبدالمنصف",null,1,1,1,null,null,null,1,null,1,null,null,null,null,null,1,1,1,1,null,null,1,null,null,1,1,1,null,1,1]
[null,"مصطفي احمد عيد عبدالحميد",null,null,null,null,1,1,null,null,null,null,1,1,1]
[null,"مصطفي اسماعيل اسماعيل  ",null,null,null,1,1,1,null,null,1,1,1,1,1,null,null,null,1,1,1,1,null,null,1,1,1,1,1,null,null,1]
[null,"مصطفي ايهاب محمد عبدالعليم",null,null,null,null,null,null,null,null,null,null,null,1]
[null,"مصطفي سمير ابراهيم رزق",null,null,null,null,null,null,null,null,null,null,null,null,null,null,null,null,null,null,null,null,1]
[null,"مصطفي صلاح عباس",null,null,null,null,null,null,null,null,null,null,null,null,null,null,null,null,null,null,null,null,null,null,null,1,1,1,1,null,null,1]
[null,"مصطفي عبدالحميد عبدالمنصف",null,null,null,null,null,null,null,null,null,null,null,null,null,null,null,null,null,null,null,null,null,null,null,1]
[null,"مصطفي عبدالقادر مبروك",null,null,null,null,1,1,1]
[null,"مصطفي محمد محمد دراز",null,null,null,null,null,null,null,null,null,1]
[null,"مصطفي محمود حافظ عاشور",null,null,null,null,null,null,null,null,null,null,null,null,null,null,null,null,null,null,null,null,null,null,null,null,1]
[null,"مصطفي ناصر ثابت علي",null,null,null,null,null,null,null,null,null,null,null,null,null,null,1,1,1,1,1,1,1,2]
[null,"معاز ممدوح ابراهيم جويده",null,null,null,null,null,null,null,null,null,1,null,null,null,null,null,1,1,null,null,null,null,null,null,null,null,null,null,null,null,1]
[null,"معتز سمير عبدربه محمد",1,1,1,null,1,null,null,1,1,null,1,1,null,null,null,1,1,1,null,null,1,null,null,1,1,1,null,1,1]
[null,"مؤمن نور فتحي بدر",1]
[null,"مينا ميلاد بباوي جبرايل",1]
[null,"نادر الشحات بدير الشحات",null,null,1,null,null,null,null,null,1]
[null,"نورالدين سيد معروف علي",null,null,null,null,null,null,null,null,null,null,null,null,null,null,null,1]
[null,"هاني سعد ابراهيم محارب",1,1,null,1,1,1,1,2,null,2,1,1,1,1,1,1,1,2,2,1,2,2,1,1,null,null,null,null,2,2]
[null,"هاني عبدالحي عيد حسن",null,null,null,null,null,null,null,null,null,null,null,null,null,null,null,null,1]
[null,"هديره طه عبدالهادي قنديل",null,null,null,null,null,null,null,1,1,1,1,1,1,1,1,1,1,1,1,1,1,1,1,1,1,null,1,null,1,1]
[null,"هشام سعيد صبحي عبدالعزيز",1,1,1,1,1,1,null,1,1,1,1,1,null,1,null,1,1,1,1,null,null,1,1,1,2,2,1,null,1,1]
[null,"هشام صابر سليم ادم",null,null,null,null,null,null,null,null,null,null,null,null,null,null,null,1]
[null,"هشام فتحي خليل المنوفي"]
[null,"واءل رجب فنح الله حماده",null,null,1]
[null,"ياسر محمد ابراهيم سيد",null,null,null,null,null,null,null,null,null,null,null,null,null,null,null,null,null,null,null,null,null,null,null,1,1]
[null,"ياسر محمد محمد عباده",2,2,2,2,2,2,2,2,2,2,1,2,1,2,2,2,2,2,2,1,1,2,2,1]
[null,"يحي محمد عبدالكريم الاعرج",1,1,1,1,1,1,1,1,1,1,1,1,2,1,null,1,1,1,1,1,null,1,1,1,1,1,1,null,1,1]
[null,"يحيي فتحي محمد عبدالله راشد",null,null,null,null,null,null,null,null,null,null,null,null,null,null,null,null,null,null,null,1]
[null,"يوسف احمد السيد",null,null,null,null,null,null,null,null,null,null,null,null,null,null,null,null,null,null,null,null,null,null,null,1,1,1,1,null,null,1]
[null,"يوسف الجمل علي كمال الدين",null,null,2,1,null,1,1,2,2,1,2,1,1,2,1,1,2,1,1,null,null,2,null,2,null,1,2,null,2]
[null,"يوسف حسين فرحات",null,null,null,1]
[null,"يوسف شعبان عبدالمنعم",null,null,null,null,null,null,null,null,null,null,null,null,null,null,null,null,null,null,null,null,null,null,null,null,null,2,1,null,1]
[null,"يونس الجمل علي كمال",2,2,2,2,null,1,null,2,null,1,null,1,null,1,1]

{"sheet":"Salim","index":3,"n_rows":5,"n_cols":5,"rows_kept":5,"cut":false,"hidden":false,"merged":[]}
[]
[null,null,"سامح عابدين محمد علي"]
[]
["اسم الموظف ","عدد الايام ","المرتب ","السلف ","الاجمالي "]
["سامح عابدين محمد علي",5,325,null,325]